Workbook

Sheet Hoja2
A1: Etiquetas de fila | B1: Suma de % Tickets cerrados | C1: Suma de % Resueltos del mes
A2: 2018-07-01 | B2: 0 | C2: 0.987012987
A3: 2018-08-01 | B3: 0 | C3: 0.9824561404
A4: 2018-09-01 | B4: 0 | C4: 0.9827586207
A5: 2018-10-01 | B5: 0 | C5: 0.9491525424
A6: Total general | B6: 0 | C6: 3.90138029

Sheet CORREO
A1: Estimados,
A3: =CONCATENATE("Se envía informe referente al cumplimiento de tickets originados. En el mismo podrán observar para el periodo ene/2016 - ",TEXT(A11,"mmm/yyyy")," tomando la totalidad de tickets originados en dicho periodo.") -> Se envía informe referente al cumplimiento de tickets originados. En el mismo podrán observar para el periodo ene/2016 - oct/2018 tomando la totalidad de tickets originados en dicho periodo.
A8: - EVOLUCION DE TICKETS
A10: Mes/Año | B10: Total tickets | C10: Ticket Cerrados Acumulado | D10: % Tickets cerrados | E10: Nuevos del mes | F10: Resueltos del mes | G10: % Resueltos del mes
A11: =TABLAS!I68 -> 2018-10-01 | B11: =VALUE(TABLAS!J68) -> 251 | C11: =VALUE(TABLAS!K68) -> 0 | D11: =VALUE(TABLAS!L68) -> 0 | E11: =VALUE(TABLAS!M68) -> 59 | F11: =VALUE(TABLAS!N68) -> 56 | G11: =VALUE(TABLAS!O68) -> 0.9491525424
A12: =TABLAS!I69 -> 2018-09-01 | B12: =VALUE(TABLAS!J69) -> 192 | C12: =VALUE(TABLAS!K69) -> 0 | D12: =VALUE(TABLAS!L69) -> 0 | E12: =VALUE(TABLAS!M69) -> 58 | F12: =VALUE(TABLAS!N69) -> 57 | G12: =VALUE(TABLAS!O69) -> 0.9827586207
A13: =TABLAS!I70 -> 2018-08-01 | B13: =VALUE(TABLAS!J70) -> 134 | C13: =VALUE(TABLAS!K70) -> 0 | D13: =VALUE(TABLAS!L70) -> 0 | E13: =VALUE(TABLAS!M70) -> 57 | F13: =VALUE(TABLAS!N70) -> 56 | G13: =VALUE(TABLAS!O70) -> 0.9824561404
A14: =TABLAS!I71 -> 2018-07-01 | B14: =VALUE(TABLAS!J71) -> 77 | C14: =VALUE(TABLAS!K71) -> 0 | D14: =VALUE(TABLAS!L71) -> 0 | E14: =VALUE(TABLAS!M71) -> 77 | F14: =VALUE(TABLAS!N71) -> 76 | G14: =VALUE(TABLAS!O71) -> 0.987012987
A16: . TOTAL Tickets – Total de Tickets generados en la filial a la fecha
A17: . Ticket Cerrados Acumulado - Tickets finalizados HQ a la fecha
A18: . % Tickets Cerrados – Porcentaje de Finalizados HQ a la fecha
A21: Etiquetas de fila | B21: Cuenta de ID Reporte
A23: (en blanco)
A24: 2016-11-01 | B24: 4
A25: 2017-02-01 | B25: 15
A26: 2017-01-01 | B26: 12
A27: 2017-04-01 | B27: 20
A28: 2017-03-01 | B28: 33
A29: 2016-12-01 | B29: 2
A30: 2017-07-01 | B30: 26
A31: 2017-06-01 | B31: 22
A32: 2017-05-01 | B32: 7
A33: 2017-10-01 | B33: 84
A34: 2017-09-01 | B34: 53
A35: 2017-08-01 | B35: 64
A36: 2018-04-01 | B36: 87
A37: 2018-03-01 | B37: 98
A38: 2018-02-01 | B38: 104
A39: 2018-01-01 | B39: 104
A40: 2017-12-01 | B40: 58
A41: 2017-11-01 | B41: 105
A42: 2018-10-01 | B42: 59
A43: 2018-09-01 | B43: 58
A44: 2018-08-01 | B44: 57
A45: 2018-07-01 | B45: 77
A46: 2018-06-01 | B46: 84
A47: 2018-05-01 | B47: 82
A48: 2018-12-01 | B48: 18
A49: 2018-11-01 | B49: 48
A50: Total general | B50: 1381
A58: DETALLES DE TICKETS por ESTADO
A60: Cuenta de ID Reporte | B60: Etiquetas de columna
A61: Etiquetas de fila | B61: EQ | C61: (en blanco) | D61: Total general
A62: Cancelado | B62: 56 | D62: 56
A63: Finalizado | B63: 1295 | D63: 1295
A64: En Análisis | B64: 9 | D64: 9
A65: En Desarrollo | B65: 11 | D65: 11
A66: (en blanco)
A67: Aprobado | B67: 1 | D67: 1
A68: Rechazado | B68: 2 | D68: 2
A69: Nuevo | B69: 7 | D69: 7
A70: Total general | B70: 1381 | D70: 1381
A72: Glosario de Estados de Tickets
A73: . Cancelado (Refiere a cuando una solicitud es incorrecta o no puede ser procesada)
A74: . En Análisis (Refiere a que el ticket está siendo analizado por IT)
A75: . En Desarrollo (Refiere a que el ticket está en proceso de resolución por IT)
A76: . En Prueba (Refiere a cuando el ticket esta en testing por parte del usuario)
A77: . Finalizado (El incidente fue solucionado y se da por finalizado el ticket)
A78: . Nuevo (Primer estado del ticket, luego se asigna en IT para su posterior análisis)
A79: . Pendiente de Aprobación (El ticket está finalizado por IT y en espera de la aprobación de la filial)
A104: - CANTIDAD/PORCENTAJE de Tickets generados discriminados en LOCAL/HQ
A106: TOTAL TICKETS | B106: =VALUE(TABLAS!B20) -> 1381
A107: TICKETS IT LOCAL | B107: =VALUE(TABLAS!B21) -> 1381 | C107: =VALUE(TABLAS!C21) -> 100 | D107: %
A111: CANTIDAD/PORCENTAJE de Tecnicos que atienden reportes generados discriminados en LOCAL
A113: Cuenta de ID Reporte | B113: Etiquetas de columna
A114: Etiquetas de fila | B114: 2016 | C114: ABIERTO | D114: (en blanco) | E114: 2017 | F114: 2018 | G114: Total general
A115: ORTEGA,PAUL | C115: 13 | E115: 120 | F115: 65 | G115: 198
A116: (en blanco)
A117: PUENTE,DANNY | B117: 2 | C117: 1 | E117: 221 | F117: 298 | G117: 522
A118: ALBURQUERQUE,EDER | B118: 4 | E118: 121 | G118: 125
A119: TRUJILLO,CARLOS | E119: 33 | F119: 35 | G119: 68
A120: HERNANDEZ, ESTEFANÍA | C120: 13 | F120: 414 | G120: 427
A121: BURBANO, DIEGO | F121: 12 | G121: 12
A122: ZAMBRANO,PRESLEY | F122: 4 | G122: 4
A123: AGUAS,Dayana | F123: 2 | G123: 2
A124: VILLACRES,SUNNER | F124: 3 | G124: 3
A125: PAREDES,Santiago | F125: 1 | G125: 1
A126: LOPEZ,MARIO | F126: 2 | G126: 2
A127: SANDOVAL,Paola | F127: 2 | G127: 2
A128: ESPIN,EDISON | F128: 1 | G128: 1
A129: FLECHER,SORAYA | F129: 2 | G129: 2
A130: MAYA, MARÍA DANIELA | F130: 1 | G130: 1
A131: ZHINDON,GINA | F131: 1 | G131: 1
A132: VALENCIA,EDGAR | F132: 1 | G132: 1
A133: SILVA,Eduardo | F133: 1 | G133: 1
A134: FLORES,Nelly | F134: 2 | G134: 2
A135: JOSE LUIS TRONCOSO | F135: 1 | G135: 1
A136: ORDONEZ,RICHARD | F136: 1 | G136: 1
A137: GARCIA,Alba | F137: 1 | G137: 1
A138: ZAMBRANO, CARLOS | F138: 1 | G138: 1
A139: CARDENAS,Andrea | F139: 1 | G139: 1
A140: MARURI,TANNYA | F140: 1 | G140: 1
A141: Total general | B141: 6 | C141: 27 | E141: 495 | F141: 853 | G141: 1381

Sheet DETALLE
A1: ID Reporte | B1: Resumen | C1: Fecha de reportado
A2: 300200 | B2: Problemas correo Amparito Layedra | C2: 18/12/2018 15:09:00 | D2: 1 | G2: *mail* | H2: =COUNTIF($B$2:$B$1382,G2) -> 17 | J2: TIPOS DE REQUERIMIENTOS | K2: CANTIDAS | L2: PORCENTAJE
A3: 300082 | B3: Problemas correo Nelly Flores | C3: 18/12/2018 8:04:00 | D3: 1 | G3: *correo* | H3: =COUNTIF($B$2:$B$1382,G3) -> 119 | J3: CORREO | K3: =H2+H3+H23 -> 195 | L3: =K3/$K$11 -> 0.234939759
A4: 299970 | B4: Problema recibir llamadas ext 116 | C4: 17/12/2018 12:46:00 | D4: 1 | G4: *impresora* | H4: =COUNTIF($B$2:$B$1382,G4) -> 97 | J4: CLAVES | K4: =H13+H14+H10 -> 53 | L4: =K4/$K$11 -> 0.06385542169
A5: 299856 | B5: Windows no encontro antivirus. | C5: 14/12/2018 17:29:00 | D5: 1 | G5: *impresión* | H5: 5 | J5: ACCESO | K5: =H11+H9 -> 129 | L5: 0.1554216867
A6: 299855 | B6: Habilitación para entrada a oficina dep. contabilidad | C6: 14/12/2018 17:24:00 | D6: 1 | G6: *qad* | H6: 30 | J6: FILE SERVER | K6: =H15+H33 -> 107 | L6: 0.1289156627
A7: 299853 | B7: Activación de FireWall restringida. | C7: 14/12/2018 17:14:00 | D7: 1 | G7: *internet* | H7: 29 | J7: IMPRESIÓN | K7: =H5+H4 -> 102 | L7: 0.1228915663
A8: 299851 | B8: Actualización Acrobat. | C8: 14/12/2018 17:09:00 | D8: 1 | G8: *VPN* | H8: 1 | J8: EQUIPOS | K8: =H12+H16+H17+H18+H19+H20+H21+H32+H24+H25 -> 133 | L8: 0.1602409639
A9: 299257 | B9: Telefono convencional | C9: 11/12/2018 13:19:00 | D9: 1 | G9: *tarjeta* | H9: =COUNTIF($B$2:$B$1382,"TARJETA") -> 0 | J9: APLICACIONES | K9: =H6+H26+H27+H28+H29+H30+H31 -> 68 | L9: 0.08192771084
A10: 299211 | B10: Telefonos inalambricos sin servicio | C10: 11/12/2018 11:25:00 | D10: 1 | G10: *desbloqueo* | H10: 9 | J10: INTERNET | K10: =H7+H8+H22 -> 43 | L10: 0.05180722892
A11: 299200 | B11: Google Chrome - URGENTE | C11: 11/12/2018 10:35:00 | D11: 1 | G11: *acceso* | H11: 129 | J11: TOTAL | K11: =SUM(K3:K10) -> 830 | L11: =SUM(L3:L10) -> 1
A12: 299052 | B12: Problemas con telefono (sin sonido) | C12: 10/12/2018 14:32:00 | D12: 1 | G12: *cd* | H12: 37 | K12: 1381
A13: 299033 | B13: Bases Phmix Analyzer nov-18 | C13: 10/12/2018 12:49:00 | D13: 1 | G13: *clave* | H13: 38
A14: 299005 | B14: Acceso Infomedi Historico | C14: 10/12/2018 10:24:00 | D14: 1 | G14: *contraseña* | H14: 6
A15: 298579 | B15: RV: COMPUTADORA | C15: 05/12/2018 14:29:00 | D15: 1 | G15: *carpeta* | H15: 46
A16: 298552 | B16: COMPUTADORA | C16: 05/12/2018 14:29:00 | D16: 1 | G16: *computadora* | H16: 20
A17: 298531 | B17: revisión de celular | C17: 05/12/2018 14:29:00 | D17: 1 | G17: *infocus* | H17: 2
A18: 298512 | B18: solicitud de tarjetas magneticas, creacion usuarios biometric | C18: 05/12/2018 14:29:00 | D18: 1 | G18: *proyector* | H18: 3
A19: 298336 | B19: PAGINA GOOGLE | C19: 04/12/2018 14:29:00 | D19: 1 | G19: *laptop* | H19: 20
A20: 297870 | B20: RE: HABILITAR TARJETA EVENTO NEUROCIENCIAS | C20: 30/11/2018 14:30:00 | D20: 1 | G20: *telefono* | H20: 22
A21: 297690 | B21: HABILITAR TARJETA EVENTO NEUROCIENCIAS | C21: 29/11/2018 17:35:00 | D21: 1 | G21: *scaner* | H21: 5
A22: 297607 | B22: cable de telefono | C22: 29/11/2018 10:55:00 | D22: 1 | G22: *web* | H22: 13
A23: 297388 | B23: SOLICITUD | C23: 28/11/2018 12:00:00 | D23: 1 | G23: *outlook* | H23: 59
A24: 297387 | B24: CAMBIO CARGADOR CELULAR CINDY CHALCO | C24: 28/11/2018 11:55:00 | D24: 1 | G24: *camaras* | H24: 1
A25: 297164 | B25: Acceso oficina 01 diciembre | C25: 27/11/2018 11:20:00 | D25: 1 | G25: *camara* | H25: 1
A26: 297041 | B26: Prestamo de Retroproyector | C26: 26/11/2018 17:10:00 | D26: 1 | G26: *MODULO* | H26: 1
A27: 297030 | B27: Configuracion impresora | C27: 26/11/2018 16:45:00 | D27: 1 | G27: *requi* | H27: 11
A28: 296725 | B28: Portal Seres | C28: 23/11/2018 11:19:00 | D28: 1 | G28: *integra* | H28: 8
A29: 296582 | B29: Grabar informacion CD - ARSCA | C29: 22/11/2018 16:45:00 | D29: 1 | G29: *citrix* | H29: 3
A30: 296502 | B30: desbloqueo clave IntegraUR | C30: 22/11/2018 12:10:00 | D30: 1 | G30: *sigv* | H30: 1
A31: 296475 | B31: usuario CITRIX - desbloquear | C31: 22/11/2018 10:50:00 | D31: 1 | G31: *sig* | H31: 14
A32: 296460 | B32: VPN | C32: 22/11/2018 10:22:00 | D32: 1 | G32: *PC* | H32: 22
A33: 296291 | B33: SRI | C33: 21/11/2018 10:50:00 | D33: 1 | G33: *ARCHIVO* | H33: 61 | N33: *cd* | O33: 37 | P33: =O33/131 -> 0.2824427481 | Q33: HARDWARE | R33: =P33+P34 -> 0.4351145038
A34: 296221 | B34: Grabar información en CD | C34: 20/11/2018 19:05:00 | D34: 1 | G34: *monitor* | H34: =COUNTIF($B$2:$B$1382,G34) -> 2 | N34: *computadora* | O34: 20 | P34: =O34/131 -> 0.1526717557 | Q34: PROYECTORES | R34: =P35+P36 -> 0.03816793893
A35: 296142 | B35: Ticket de Prueba - Inducción | C35: 20/11/2018 13:20:00 | D35: 1 | N35: *infocus* | O35: 2 | P35: 0.01526717557 | Q35: LAPTOP | R35: =P37 -> 0.1526717557
A36: 296082 | B36: PROBLEMAS EN ABRIR LA CARPETA 2018 | C36: 20/11/2018 10:45:00 | D36: 1 | F36: *mail* | G36: =COUNTIF($B$2:$B$1382,F36) -> 17 | N36: *proyector* | O36: 3 | P36: 0.02290076336 | Q36: PC | R36: =P40 -> 0.1679389313
A37: 296028 | B37: contraseña SPARK | C37: 19/11/2018 18:25:00 | D37: 1 | N37: *laptop* | O37: 20 | P37: 0.1526717557 | Q37: PERIFÉRICOS | R37: =P38+P39 -> 0.2061068702
A38: 296014 | B38: Búsqueda correo | C38: 19/11/2018 18:15:00 | D38: 1 | N38: *telefono* | O38: 22 | P38: 0.1679389313
A39: 295956 | B39: Acceso agenda Gustavo Avakian | C39: 19/11/2018 13:05:00 | D39: 1 | N39: *scaner* | O39: 5 | P39: 0.03816793893
A40: 295953 | B40: Desbloquear clave | C40: 19/11/2018 12:55:00 | D40: 1 | N40: *PC* | O40: 22 | P40: 0.1679389313
A41: 295935 | B41: AGREGAR SALAS | C41: 19/11/2018 12:40:00 | D41: 1 | O41: =SUM(O33:O40) -> 131
A42: 295930 | B42: Préstamo Laptop | C42: 19/11/2018 12:35:00 | D42: 1
A43: 295897 | B43: Desbloqueo de usuario apm | C43: 19/11/2018 11:05:00 | D43: 1
A44: 295889 | B44: Desbloquear Usuario. | C44: 19/11/2018 10:50:00 | D44: 1
A45: 295782 | B45: ACCESO OFICINAS SABADO 17 DE NOVIEMBRE -18 | C45: 16/11/2018 17:48:00 | D45: 1
A46: 295611 | B46: Problema pantalla tablet | C46: 15/11/2018 17:47:00 | D46: 1
A47: 295561 | B47: Problemas correo electrónico | C47: 15/11/2018 13:35:00 | D47: 1
A48: 295559 | B48: Habilitación de proyector e sala Chimborazo | C48: 15/11/2018 13:35:00 | D48: 1
A49: 295348 | B49: computadora | C49: 14/11/2018 16:00:00 | D49: 1
A50: 295295 | B50: DESBLOQUEO CUENTA OUTLOOK | C50: 14/11/2018 12:40:00 | D50: 1
A51: 295292 | B51: PROHIBICION A PAGINAS REFERENTE A SALUD | C51: 14/11/2018 12:30:00 | D51: 1
A52: 295291 | B52: Configuración go to meeting celular FD | C52: 14/11/2018 12:20:00 | D52: 1
A53: 295183 | B53: Problema con archivo de correos enviados | C53: 13/11/2018 18:50:00 | D53: 1
A54: 294951 | B54: Acceso Elizabeth Burbano | C54: 12/11/2018 17:00:00 | D54: 1
A55: 294882 | B55: Inducción | C55: 12/11/2018 12:55:00 | D55: 1
A56: 294874 | B56: CONEXION SERES | C56: 12/11/2018 12:30:00 | D56: 1
A57: 294764 | B57: ACCESO OFICINAS SABADO 10 DE NOVIEMBRE -18 | C57: 09/11/2018 17:56:00 | D57: 1
A58: 294733 | B58: RV: HABILITACION DE IMPRESORA GYE | C58: 09/11/2018 17:56:00 | D58: 1
A59: 294731 | B59: HABILITACION DE IMPRESORA GYE | C59: 09/11/2018 17:56:00 | D59: 1
A60: 294640 | B60: MAL FUNCIONAMIENTO DE CORREO | C60: 09/11/2018 17:56:00 | D60: 1
A61: 294622 | B61: Bases Analyzer y PH mix | C61: 09/11/2018 17:56:00 | D61: 1
A62: 294488 | B62: INSTALACION PROGRAMA GEENERA /ACCESO CARPETAS A.OLMOS | C62: 08/11/2018 13:25:00 | D62: 1 | F62: *carpeta* | G62: 3
A63: 294233 | B63: Telefóno volumen bajo | C63: 07/11/2018 11:35:00 | D63: 1
A64: 294216 | B64: Infocus Ana Recalde. | C64: 07/11/2018 10:35:00 | D64: 1
A65: 293732 | B65: Administración e-nexo área Médica | C65: 05/11/2018 16:00:00 | D65: 1
A66: 293620 | B66: Cambio temporal de puesto | C66: 05/11/2018 10:30:00 | D66: 1
A67: 293617 | B67: solicitud de mensaje correo Melissa Amen | C67: 05/11/2018 10:25:00 | D67: 1
A68: 293105 | B68: error al imprimir | C68: 31/10/2018 11:55:00 | D68: 1
A69: 293070 | B69: Recuperar archivo a EXCEL | C69: 31/10/2018 10:50:00 | D69: 1
A70: 293061 | B70: Iticket llave magnética Rossana González | C70: 31/10/2018 10:05:00 | D70: 1
A71: 292994 | B71: bloqueo de clave | C71: 30/10/2018 18:45:00 | D71: 1
A72: 292908 | B72: OUTLOOK - CONTRASEÑA | C72: 30/10/2018 12:30:00 | D72: 1
A73: 292739 | B73: Resteo clave | C73: 29/10/2018 13:55:00 | D73: 1
A74: 292640 | B74: archivos no se eabren en celular | C74: 29/10/2018 10:56:00 | D74: 1
A75: 292635 | B75: FALTA DE CONCECCION FUERA DE OFICINAS | C75: 29/10/2018 10:53:00 | D75: 1
A76: 292568 | B76: Sistema Geenera / Impresión de Certificados | C76: 26/10/2018 18:25:00 | D76: 1
A77: 292566 | B77: ACCESO OFICINAS SABADO 27 DE OCTUBRE -18 | C77: 26/10/2018 18:02:00 | D77: 1
A78: 292563 | B78: INSTALACION | C78: 26/10/2018 17:35:00 | D78: 1
A79: 292541 | B79: Usuario Bloqueado | C79: 26/10/2018 16:50:00 | D79: 1
A80: 292368 | B80: PORTAL DE REQUISICIONES | C80: 25/10/2018 18:10:00 | D80: 1
A81: 292356 | B81: REVISION BASES CELULARES | C81: 25/10/2018 17:10:00 | D81: 1
A82: 292352 | B82: ACCESO OFICINAS SABADO 27 DE OCTUBRE -18 | C82: 25/10/2018 16:53:00 | D82: 1
A83: 292291 | B83: prueba ti | C83: 25/10/2018 12:55:00 | D83: 1
A84: 292241 | B84: PROBELMAS LAPTOP CINDY CHALCO | C84: 25/10/2018 10:35:00 | D84: 1
A85: 292196 | B85: Instalación de ADOBE | C85: 24/10/2018 20:30:00 | D85: 1
A86: 292181 | B86: SOLICITUD DE LAPTOP | C86: 24/10/2018 19:45:00 | D86: 1
A87: 292089 | B87: buzon de entrada lleno | C87: 24/10/2018 14:26:00 | D87: 1
A88: 292042 | B88: Olvido de Clave | C88: 24/10/2018 11:50:00 | D88: 1
A89: 291960 | B89: CAMBIO CONTRASEÑA ACCESO QAD | C89: 23/10/2018 17:45:00 | D89: 1
A90: 291930 | B90: Portal | C90: 23/10/2018 15:35:00 | D90: 1
A91: 291857 | B91: Revisar mi tablet | C91: 23/10/2018 10:45:00 | D91: 1
A92: 291753 | B92: ACTUALIZACION DE DIRECCION | C92: 22/10/2018 17:25:00 | D92: 1
A93: 291683 | B93: REVISIÓN LAPTOP URGENTE | C93: 22/10/2018 14:00:00 | D93: 1
A94: 291639 | B94: Correo vacaciones | C94: 22/10/2018 10:55:00 | D94: 1
A95: 291533 | B95: INFORMACION DEL IMPACTO PMC SOBRE EL SELL OUT YTD SEP 2018 | C95: 19/10/2018 16:35:00 | D95: 1
A96: 290517 | B96: SOPORTE IMPRESORA | C96: 17/10/2018 13:00:00 | D96: 1
A97: 290494 | B97: Acceso a Presupuesto Financiero | C97: 17/10/2018 12:00:00 | D97: 1
A98: 290301 | B98: Cambios de dominio en Presupuesto Financiero | C98: 16/10/2018 11:45:00 | D98: 1
A99: 290208 | B99: Desbloquear cuenta RRHH comunes | C99: 15/10/2018 18:13:00 | D99: 1
A100: 290195 | B100: Inducción dsegarra y dguevara | C100: 15/10/2018 16:55:00 | D100: 1
A101: 290176 | B101: RE: Acceso Katty Guevara | C101: 15/10/2018 13:40:00 | D101: 1
A102: 290151 | B102: ACCESO A FOTOGRAFIAS PORTAFOLIO FARMA | C102: 15/10/2018 13:30:00 | D102: 1
A103: 290136 | B103: RE: INFOUS Y COMPUTADOR | C103: 15/10/2018 11:20:00 | D103: 1
A104: 290091 | B104: Acceso Katty Guevara | C104: 12/10/2018 18:00:00 | D104: 1
A105: 289852 | B105: Re: Entrenamiento Onco Uro | C105: 11/10/2018 11:45:00 | D105: 1
A106: 289689 | B106: Usuario bloqueado | C106: 10/10/2018 13:10:00 | D106: 1
A107: 289660 | B107: BCP ACCESO | C107: 10/10/2018 11:46:00 | D107: 1
A108: 289633 | B108: RV: Gastos deducibles IR | C108: 10/10/2018 10:45:00 | D108: 1
A109: 289581 | B109: Problemas en gotommeting | C109: 09/10/2018 17:54:00 | D109: 1
A110: 289579 | B110: Teléfono sin tono | C110: 09/10/2018 17:51:00 | D110: 1
A111: 289482 | B111: IMPRESION EN SOBRES | C111: 09/10/2018 13:15:00 | D111: 1
A112: 289475 | B112: Bases Phmix y Analyzer octubre-18 | C112: 09/10/2018 12:50:00 | D112: 1
A113: 289442 | B113: habilitación de usuario | C113: 09/10/2018 11:25:00 | D113: 1
A114: 289437 | B114: Falta instalación Access | C114: 09/10/2018 11:15:00 | D114: 1
A115: 289420 | B115: Impresora con mensaje no conexión | C115: 09/10/2018 10:45:00 | D115: 1
A116: 289417 | B116: carpeta externa resplado outlook | C116: 09/10/2018 10:39:00 | D116: 1 | G116: 3
A117: 289050 | B117: TELEFONO CON RUIDO | C117: 05/10/2018 10:20:00 | D117: 1
A118: 288916 | B118: permisos para reinstalar Forecast Pro | C118: 04/10/2018 12:10:00 | D118: 1
A119: 288739 | B119: instalación plugins para QAD | C119: 03/10/2018 12:15:00 | D119: 1
A120: 288524 | B120: Credenciales outloock | C120: 02/10/2018 12:10:00 | D120: 1
A121: 288463 | B121: Descarga de plataforma Ushay | C121: 02/10/2018 9:55:00 | D121: 1
A122: 288403 | B122: clave internet | C122: 01/10/2018 16:40:00 | D122: 1
A123: 288337 | B123: Inducción LACARO | C123: 01/10/2018 13:50:00 | D123: 1
A124: 288273 | B124: Nuevo Dimm | C124: 01/10/2018 11:25:00 | D124: 1
A125: 288265 | B125: INF. PARA COPIAR EN CD | C125: 01/10/2018 11:05:00 | D125: 1
A126: 288244 | B126: GRABAR DOCUMENTOS EN CD | C126: 01/10/2018 10:35:00 | D126: 1
A127: 288164 | B127: EVENTO EL DIA DE HOY | C127: 28/09/2018 17:55:00 | D127: 1
A128: 287908 | B128: Problemas con el Outlook | C128: 27/09/2018 10:40:00 | D128: 1
A129: 287676 | B129: PROBLEMAS CON EL CELULAR ASIGNADO CINDY CHALCO | C129: 26/09/2018 10:49:00 | D129: 1
A130: 287405 | B130: Acceso a Pick de Verónica Arrieta | C130: 24/09/2018 21:04:00 | D130: 1
A131: 287363 | B131: Clave Spark Angel García | C131: 24/09/2018 16:09:00 | D131: 1
A132: 287323 | B132: Plantilla PIV usuario F Dávila | C132: 24/09/2018 14:09:00 | D132: 1
A133: 287208 | B133: RESPALDO ARCHIVO PUEMBO | C133: 24/09/2018 11:09:00 | D133: 1
A134: 287207 | B134: Desintalación/instalación Forecast Pro | C134: 24/09/2018 11:00:00 | D134: 1
A135: 287130 | B135: RV: PROTECTOR PANTALLA / SCREEN SAVER XUMER | C135: 21/09/2018 14:45:00 | D135: 1
A136: 287093 | B136: Telefono inalambrico con mensaje Sin suscripcion | C136: 21/09/2018 10:54:00 | D136: 1
A137: 287059 | B137: habilitar youtube | C137: 20/09/2018 18:25:00 | D137: 1
A138: 287047 | B138: APLICACION CAPACIOTACION E-NEXOS | C138: 20/09/2018 17:14:00 | D138: 1
A139: 286963 | B139: RV: RV: Xtandi Ecuador_NEW Strategy | C139: 20/09/2018 10:45:00 | D139: 1
A140: 286915 | B140: revision de maquina | C140: 19/09/2018 19:00:00 | D140: 1
A141: 286908 | B141: Verificar correos de IMShealth que no están ingresando | C141: 19/09/2018 18:30:00 | D141: 1
A142: 286883 | B142: PORTAL DE EMPLEADOS | C142: 19/09/2018 17:15:00 | D142: 1
A143: 286878 | B143: revision de correo | C143: 19/09/2018 16:45:00 | D143: 1
A144: 286777 | B144: RV: HABILITAR PC | C144: 18/09/2018 18:20:00 | D144: 1
A145: 286774 | B145: RE: Activacion Tarjeta | C145: 18/09/2018 17:59:00 | D145: 1
A146: 286506 | B146: Auditores Externos conexion Wyfi | C146: 17/09/2018 12:45:00 | D146: 1
A147: 286464 | B147: HABILITACION | C147: 17/09/2018 10:45:00 | D147: 1
A148: 286325 | B148: RV: Revision de Ley Productividad y Precios de Transferencia | C148: 14/09/2018 11:05:00 | D148: 1
A149: 286213 | B149: INSTALACIÓN SKYPE | C149: 13/09/2018 13:45:00 | D149: 1
A150: 286210 | B150: Sin contraseña personal para el correo electrónico | C150: 13/09/2018 13:00:00 | D150: 1
A151: 286204 | B151: SPAM: Clave para correo electrónico | C151: 13/09/2018 12:35:00 | D151: 1 | G151: *contraseña* | H151: =COUNTIF($B$2:$B$1382,G151) -> 6 | I151: CONTRASEÑAS | J151: =H151+H154 -> 44 | K151: =J151/130 -> 0.3384615385
A152: 286201 | B152: RV: solicitud de activacion de tarjetas | C152: 13/09/2018 12:25:00 | D152: 1
A153: 286196 | B153: Activacion Tarjeta | C153: 13/09/2018 12:15:00 | D153: 1
A154: 286173 | B154: Recuperación correos | C154: 13/09/2018 11:15:00 | D154: 1 | G154: *clave* | H154: =COUNTIF($B$2:$B$1382,G154) -> 38 | I154: RESPALDOS | J154: =H155+H167+H193 -> 26 | K154: =J154/130 -> 0.2
A155: 286152 | B155: Enviando por correo electrónico: DSC_0819.jpg | C155: 13/09/2018 10:05:00 | D155: 1 | G155: *pst* | H155: 3 | I155: ENVIO/RECEPCIÓN | J155: =H189 -> 16 | K155: 0.1230769231
A156: 286106 | B156: Iconos escritorio. | C156: 12/09/2018 17:10:00 | D156: 1
A157: 286104 | B157: Impresora sesión Gerente de Distrito. | C157: 12/09/2018 17:00:00 | D157: 1
A158: 286102 | B158: Impresora sesión APM | C158: 12/09/2018 16:55:00 | D158: 1
A159: 286051 | B159: No recepción notificaciones REQUIWEB FDAVILA | C159: 12/09/2018 13:55:00 | D159: 1
A160: 286050 | B160: solicitud de separacion archivo pdf | C160: 12/09/2018 13:25:00 | D160: 1
A161: 286047 | B161: Revisión aplicación Excel | C161: 12/09/2018 13:05:00 | D161: 1
A162: 285985 | B162: Bases Phmix - Analyzer AGO-18 | C162: 12/09/2018 10:25:00 | D162: 1
A163: 285948 | B163: Imposibilidad para cargas adjuntos desde owa | C163: 11/09/2018 19:30:00 | D163: 1
A164: 285893 | B164: prueba ti varrieta | C164: 11/9/2018 14:35:00 | D164: 1
A165: 285892 | B165: prueba ticket | C165: 11/9/2018 14:35:00 | D165: 1
A166: 285862 | B166: HABILITAR IMPRESORAS | C166: 11/9/2018 12:40:00 | D166: 1
A167: 285836 | B167: CORREOS REBOTAN | C167: 11/9/2018 12:00:00 | D167: 1 | G167: *respaldo* | H167: =COUNTIF($B$2:$B$1382,G167) -> 9 | I167: DISPOSITIVOS | J167: =H194 -> 44 | K167: =J167/130 -> 0.3384615385
A168: 285616 | B168: Descarga archivos de video | C168: 10/9/2018 13:55:00 | D168: 1
A169: 285246 | B169: acceso youtube | C169: 6/9/2018 16:15:00 | D169: 1
A170: 285172 | B170: Error en Impresión | C170: 6/9/2018 14:05:00 | D170: 1
A171: 285169 | B171: Impresion documento | C171: 6/9/2018 13:55:00 | D171: 1
A172: 285157 | B172: FONDO DE PANTALLA | C172: 6/9/2018 12:30:00 | D172: 1
A173: 285126 | B173: TELEFONO | C173: 6/9/2018 10:45:00 | D173: 1
A174: 285028 | B174: RV: RV: Día Mundial del Mieloma Múltiple | C174: 5/9/2018 13:55:00 | D174: 1
A175: 285026 | B175: Reunión 6 septiembre | C175: 5/9/2018 13:40:00 | D175: 1
A176: 284927 | B176: VIOLACION DE SEGURIDADES EN EL MAIL CORPORATIVO | C176: 5/9/2018 2:20:00 | D176: 1
A177: 284852 | B177: Instalación | C177: 4/9/2018 16:50:00 | D177: 1
A178: 284821 | B178: configuración Impresora y clave FD | C178: 4/9/2018 14:15:00 | D178: 1
A179: 284755 | B179: Inconveniente versiones Excel | C179: 4/9/2018 12:15:00 | D179: 1
A180: 284753 | B180: Iticket proyecto FM Corp | C180: 4/9/2018 11:50:00 | D180: 1
A181: 284725 | B181: Laptop Cindy Chalco | C181: 4/9/2018 10:30:00 | D181: 1
A182: 284505 | B182: Escritorio | C182: 3/9/2018 13:25:00 | D182: 1
A183: 284491 | B183: No se pueden abrir archivos de excel en la tablet | C183: 3/9/2018 13:20:00 | D183: 1
A184: 284490 | B184: Sin whatsApp en el teléfono de la compañía | C184: 3/9/2018 13:20:00 | D184: 1
A185: 284208 | B185: Cartelera septiembre | C185: 31/8/2018 19:15:00 | D185: 1
A186: 284207 | B186: Solicitud de 1 sala | C186: 31/8/2018 19:05:00 | D186: 1
A187: 284003 | B187: bloqueo usuario | C187: 30/8/2018 14:50:00 | D187: 1
A188: 283802 | B188: Telefono inalambrico con mensaje Sin suscripcion | C188: 29/8/2018 13:05:00 | D188: 1
A189: 283758 | B189: Correo no funciona | C189: 29/8/2018 11:04:00 | D189: 1 | G189: *envi* | H189: =COUNTIF($B$2:$B$1382,G189) -> 16
A190: 283556 | B190: GRABAR INFORMACION EN CD | C190: 28/8/2018 12:20:00 | D190: 1
A191: 283521 | B191: REQUERIMIENTO MOUSE - GARANTÍA CALIDAD BODEGA | C191: 28/08/2018 11:15:00 | D191: 1
A192: 283447 | B192: RV: problemas para ingresar a QAD | C192: 27/08/2018 19:05:00 | D192: 1
A193: 283304 | B193: ARREGLO DE CORREO | C193: 27/08/2018 10:10:00 | D193: 1 | G193: *lleno* | H193: =COUNTIF($B$2:$B$1382,G193) -> 14
A194: 283145 | B194: Problemas recibiendo correos bi - HQ | C194: 24/08/2018 11:25:00 | D194: 1 | G194: *tablet* | H194: 44
A195: 283054 | B195: RV: Solicitud de 1 sala | C195: 23/08/2018 17:50:00 | D195: 1
A196: 283051 | B196: RV: CHARLAS NEUROCIENCIAS | C196: 23/08/2018 17:35:00 | D196: 1
A197: 283009 | B197: RV: Info medicamenta agosto | C197: 23/08/2018 14:35:00 | D197: 1
A198: 282997 | B198: IMPRESION CINDY CHALCO | C198: 23/08/2018 13:55:00 | D198: 1
A199: 282828 | B199: Configuración de impresora | C199: 22/08/2018 13:45:00 | D199: 1
A200: 282804 | B200: Prueba | C200: 22/08/2018 12:20:00 | D200: 1
... 1182 more rows

Sheet DETALLE (2) (hidden)
A1: ID Reporte | B1: Resumen | C1: Reportado por | D1: Fecha de reportado | E1: Asignado a | F1: Prioridad | G1: Estado | H1: Tipo | I1: Subtipo | J1: Filial | K1: Última Actualización | L1: Fecha de cierre | M1: Año | N1: Nivel Prioridad | O1: AÑOMES CIERRE | P1: AÑOMES ING | Q1: RESUELTOS MES
A2: 147790 | B2: SIN SERVICIO EN FOCUS WEB Y NO SE PUEDE SINCRONIZAR | C2: JANETH NAVARRETE | D2: 31/08/2015 23:38 | E2: JANETH NAVARRETE | F2: Alta (24 horas) | G2: Finalizado | H2: Caida de Servicio | I2: Por defecto | J2: HQ -EQ | K2: 01/09/2015 10:12 | L2: 01/09/2015 10:12 | N2: =IF(F2="","",IF(OR(F2="Urgente (4 horas)",F2="Crítica (8 horas)"),"Crit/Urge","Otros")) -> Otros | O2: =IF(A2="","",IF(L2="","ABIERTO",DATE(VALUE(MID(L2,7,4)),VALUE(MID(L2,4,2)),1))) -> 2015-09-01 | P2: =IF(A2="","",DATE(VALUE(MID(D2,7,4)),VALUE(MID(D2,4,2)),1)) -> 2015-08-01 | Q2: =IF(A2="","",IF(AND(P2=O2, G2="Finalizado"),1,0)) -> 0
A3: 147783 | B3: Actualizacion Test | C3: SOTELO, ISRAEL | D3: 31/08/2015 19:51 | E3: SOTELO, ISRAEL | F3: Alta (24 horas) | G3: Finalizado | H3: Nuevo requerimiento | I3: Plan promoción | J3: HQ -PE | K3: 01/09/2015 12:19 | L3: 01/09/2015 12:19 | N3: Otros | O3: 2015-09-01 | P3: 2015-08-01 | Q3: 0
A4: 147782 | B4: NO SE PUEDE SINCRONIZAR LAS CITAS CREADAS EN AGENDA | C4: JANETH NAVARRETE | D4: 31/08/2015 19:50 | E4: JANETH NAVARRETE | F4: Alta (24 horas) | G4: Finalizado | H4: Error/Bug | I4: Desarrollo | J4: HQ -EQ | K4: 01/09/2015 14:07 | L4: 01/09/2015 14:07 | N4: Otros | O4: 2015-09-01 | P4: 2015-08-01 | Q4: 0
A5: 147725 | B5: Ajuste Cierre de Ciclo agosto | C5: CIRIANA NIETO | D5: 31/08/2015 16:25 | E5: CIRIANA NIETO | F5: Alta (24 horas) | G5: Finalizado | H5: Carga Manual de Datos | I5: Por defecto | J5: HQ -VE | K5: 31/08/2015 17:32 | L5: 31/08/2015 17:32 | N5: Otros | O5: 2015-08-01 | P5: 2015-08-01 | Q5: 1
A6: 147714 | B6: Carga manual de Frecuencia de doble contacto de Septiembre a Diciembre 2015 | C6: JANETH NAVARRETE | D6: 31/08/2015 15:58 | E6: JANETH NAVARRETE | F6: Alta (24 horas) | G6: Pendiente de Aprobación | H6: Carga Manual de Datos | I6: Por defecto | J6: HQ -EQ | K6: 31/08/2015 16:19 | N6: Otros | O6: ABIERTO | P6: 2015-08-01 | Q6: 0
A7: 147655 | B7: Actualizacion de Productos | C7: JUAN CAMILO AMAYA RODRIGUEZ | D7: 31/08/2015 12:28 | E7: JUAN CAMILO AMAYA RODRIGUEZ | F7: Alta (24 horas) | G7: Finalizado | H7: Error/Bug | I7: Desarrollo | J7: CO -HQ | K7: 31/08/2015 13:46 | L7: 31/08/2015 13:46 | N7: Otros | O7: 2015-08-01 | P7: 2015-08-01 | Q7: 1
A8: 147644 | B8: Actualizacion de productos - Focus med | C8: JUAN CAMILO AMAYA RODRIGUEZ | D8: 31/08/2015 11:47 | E8: JUAN CAMILO AMAYA RODRIGUEZ | F8: Alta (24 horas) | G8: Finalizado | H8: Carga Manual de Datos | I8: Por defecto | J8: CO -HQ | K8: 31/08/2015 13:47 | L8: 31/08/2015 13:47 | N8: Otros | O8: 2015-08-01 | P8: 2015-08-01 | Q8: 1
A9: 147641 | B9: Error al seleccionar Informe de Avance del APMs en la herramienta de Recategorizacion | C9: FLORES, JUAN PABLO | D9: 31/08/2015 11:42 | E9: PALACIOS, CRISTHIAN | F9: Alta (24 horas) | G9: En Desarrollo IT | H9: Error/Bug | I9: Produccion | J9: HQ -BV | K9: 31/08/2015 13:56 | N9: Otros | O9: ABIERTO | P9: 2015-08-01 | Q9: 0
A10: 147638 | B10: Vista vcloseup | C10: SOTELO, ISRAEL | D10: 31/08/2015 11:28 | E10: SOTELO, ISRAEL | F10: Alta (24 horas) | G10: Finalizado | H10: Solicitud de Información | I10: Por defecto | J10: HQ -PE | K10: 31/08/2015 12:00 | L10: 31/08/2015 11:54 | N10: Otros | O10: 2015-08-01 | P10: 2015-08-01 | Q10: 1
A11: 147623 | B11: CAÍDA DE SERVIDORES | C11: ADRIANA SANCHEZ | D11: 31/08/2015 10:37 | E11: ADRIANA SANCHEZ | F11: Alta (24 horas) | G11: Finalizado | H11: Caida de Servicio | I11: Por defecto | J11: HQ -MX | K11: 31/08/2015 11:47 | L11: 31/08/2015 11:47 | N11: Otros | O11: 2015-08-01 | P11: 2015-08-01 | Q11: 1
A12: 147593 | B12: Sincronização | C12: SILVA, RENATA | D12: 31/08/2015 09:12 | E12: SILVA, RENATA | F12: Alta (24 horas) | G12: Finalizado | H12: Error/Bug | I12: Produccion | J12: HQ -BR | K12: 31/08/2015 13:43 | L12: 31/08/2015 13:43 | N12: Otros | O12: 2015-08-01 | P12: 2015-08-01 | Q12: 1
A13: 147592 | B13: Erro de Sincronização | C13: SILVA, RENATA | D13: 31/08/2015 09:01 | E13: SILVA, RENATA | F13: Alta (24 horas) | G13: Finalizado | H13: Error/Bug | I13: Produccion | J13: HQ -BR | K13: 31/08/2015 13:44 | L13: 31/08/2015 13:44 | N13: Otros | O13: 2015-08-01 | P13: 2015-08-01 | Q13: 1
A14: 147591 | B14: Erro de Sincronização | C14: SILVA, RENATA | D14: 31/08/2015 09:00 | E14: SILVA, RENATA | F14: Alta (24 horas) | G14: Finalizado | H14: Error/Bug | I14: Produccion | J14: HQ -BR | K14: 31/08/2015 13:45 | L14: 31/08/2015 13:45 | N14: Otros | O14: 2015-08-01 | P14: 2015-08-01 | Q14: 1
A15: 147586 | B15: Erro de Sincronização | C15: SILVA, RENATA | D15: 31/08/2015 08:46 | E15: SILVA, RENATA | F15: Alta (24 horas) | G15: Finalizado | H15: Error/Bug | I15: Desarrollo | J15: HQ -BR | K15: 31/08/2015 13:45 | L15: 31/08/2015 13:45 | N15: Otros | O15: 2015-08-01 | P15: 2015-08-01 | Q15: 1
A16: 147575 | B16: Erro de Sincronização | C16: SILVA, RENATA | D16: 31/08/2015 08:19 | E16: SILVA, RENATA | F16: Alta (24 horas) | G16: Finalizado | H16: Error/Bug | I16: Desarrollo | J16: HQ -BR | K16: 31/08/2015 13:40 | L16: 31/08/2015 13:40 | N16: Otros | O16: 2015-08-01 | P16: 2015-08-01 | Q16: 1
A17: 147502 | B17: No aparecen acciones registradas Focus panama | C17: RUIZ, PATRICIA | D17: 28/08/2015 13:12 | E17: RUIZ, PATRICIA | F17: Alta (24 horas) | G17: Finalizado | H17: Error/Bug | I17: Produccion | J17: HQ -RD | K17: 31/08/2015 13:39 | L17: 31/08/2015 13:39 | N17: Otros | O17: 2015-08-01 | P17: 2015-08-01 | Q17: 1
A18: 147459 | B18: Grade Promocional - Hemato | C18: SILVA, RENATA | D18: 28/08/2015 10:48 | E18: SILVA, RENATA | F18: Alta (24 horas) | G18: Finalizado | H18: Carga Manual de Datos | I18: Por defecto | J18: HQ -BR | K18: 28/08/2015 14:24 | L18: 28/08/2015 14:24 | N18: Otros | O18: 2015-08-01 | P18: 2015-08-01 | Q18: 1
A19: 147452 | B19: error carga matriz de linea CH test | C19: KOHR, KAREN | D19: 28/08/2015 10:09 | E19: KOHR, KAREN | F19: Alta (24 horas) | G19: Finalizado | H19: Error/Bug | I19: Test | J19: HQ -ZA | K19: 31/08/2015 13:36 | L19: 31/08/2015 13:36 | N19: Otros | O19: 2015-08-01 | P19: 2015-08-01 | Q19: 1
A20: 147383 | B20: Erro Focus | C20: SILVA, RENATA | D20: 27/08/2015 15:15 | E20: SILVA, RENATA | F20: Alta (24 horas) | G20: Finalizado | H20: Error/Bug | I20: Produccion | J20: HQ -BR | K20: 31/08/2015 13:37 | L20: 31/08/2015 13:37 | N20: Otros | O20: 2015-08-01 | P20: 2015-08-01 | Q20: 1
A21: 147381 | B21: Actualizacion de productos | C21: JUAN CAMILO AMAYA RODRIGUEZ | D21: 27/08/2015 14:57 | E21: JUAN CAMILO AMAYA RODRIGUEZ | F21: Alta (24 horas) | G21: Finalizado | H21: Carga Manual de Datos | I21: Por defecto | J21: CO -HQ | K21: 31/08/2015 13:35 | L21: 31/08/2015 13:35 | N21: Otros | O21: 2015-08-01 | P21: 2015-08-01 | Q21: 1
A22: 147359 | B22: Solicitud Creación Código | C22: JUAN CAMILO AMAYA RODRIGUEZ | D22: 27/08/2015 12:33 | E22: JUAN CAMILO AMAYA RODRIGUEZ | F22: Alta (24 horas) | G22: Finalizado | H22: Carga Manual de Datos | I22: Por defecto | J22: CO -HQ | K22: 31/08/2015 13:32 | L22: 31/08/2015 13:32 | N22: Otros | O22: 2015-08-01 | P22: 2015-08-01 | Q22: 1
A23: 147344 | B23: Crear nuevo Producto | C23: RUIZ, PATRICIA | D23: 27/08/2015 11:53 | E23: RUIZ, PATRICIA | F23: Alta (24 horas) | G23: Finalizado | H23: Carga Manual de Datos | I23: Por defecto | J23: HQ -RD | K23: 31/08/2015 13:32 | L23: 31/08/2015 13:32 | N23: Otros | O23: 2015-08-01 | P23: 2015-08-01 | Q23: 1
A24: 147334 | B24: Pendente de Aprovação | C24: SILVA, RENATA | D24: 27/08/2015 11:30 | E24: SILVA, RENATA | F24: Alta (24 horas) | G24: Finalizado | H24: Error/Bug | I24: Desarrollo | J24: HQ -BR | K24: 31/08/2015 13:30 | L24: 31/08/2015 13:30 | N24: Otros | O24: 2015-08-01 | P24: 2015-08-01 | Q24: 1
A25: 147283 | B25: eliminar marcas de algunas lineas | C25: JUAN CAMILO AMAYA RODRIGUEZ | D25: 26/08/2015 20:57 | E25: JUAN CAMILO AMAYA RODRIGUEZ | F25: Alta (24 horas) | G25: Finalizado | H25: Carga Manual de Datos | I25: Por defecto | J25: CO -HQ | K25: 31/08/2015 13:28 | L25: 31/08/2015 13:28 | N25: Otros | O25: 2015-08-01 | P25: 2015-08-01 | Q25: 1
A26: 147263 | B26: Sincronização | C26: SILVA, RENATA | D26: 26/08/2015 17:45 | E26: SILVA, RENATA | F26: Alta (24 horas) | G26: Finalizado | H26: Error/Bug | I26: Produccion | J26: HQ -BR | K26: 31/08/2015 13:28 | L26: 31/08/2015 13:28 | N26: Otros | O26: 2015-08-01 | P26: 2015-08-01 | Q26: 1
A27: 147174 | B27: planes de promocion otros clientes no medicos | C27: KOHR, KAREN | D27: 26/08/2015 12:27 | E27: KOHR, KAREN | F27: Alta (24 horas) | G27: Finalizado | H27: Error/Bug | I27: Produccion | J27: HQ -BV | K27: 31/08/2015 19:06 | L27: 31/08/2015 19:06 | N27: Otros | O27: 2015-08-01 | P27: 2015-08-01 | Q27: 1
A28: 147158 | B28: Reporte de prescriptores - diferencias entre web y tablet | C28: GUTIERREZ, EDUARDO | D28: 26/08/2015 11:53 | E28: PALACIOS, CRISTHIAN | F28: Media (72 horas) | G28: En Desarrollo IT | H28: Error/Bug | I28: Produccion | J28: HQ -PY | K28: 26/08/2015 12:50 | N28: Otros | O28: ABIERTO | P28: 2015-08-01 | Q28: 0
A29: 147143 | B29: Pendente de Aprovação | C29: SILVA, RENATA | D29: 26/08/2015 11:16 | E29: SILVA, RENATA | F29: Alta (24 horas) | G29: Finalizado | H29: Error/Bug | I29: Produccion | J29: HQ -BR | K29: 31/08/2015 13:26 | L29: 31/08/2015 13:26 | N29: Otros | O29: 2015-08-01 | P29: 2015-08-01 | Q29: 1
A30: 147132 | B30: Erro Focus | C30: SILVA, RENATA | D30: 26/08/2015 10:54 | E30: SILVA, RENATA | F30: Alta (24 horas) | G30: Finalizado | H30: Error/Bug | I30: Produccion | J30: HQ -BR | K30: 31/08/2015 13:23 | L30: 31/08/2015 13:23 | N30: Otros | O30: 2015-08-01 | P30: 2015-08-01 | Q30: 1
A31: 147130 | B31: Erro Focus | C31: SILVA, RENATA | D31: 26/08/2015 10:48 | E31: SILVA, RENATA | F31: Alta (24 horas) | G31: Finalizado | H31: Error/Bug | I31: Desarrollo | J31: HQ -BR | K31: 31/08/2015 13:23 | L31: 31/08/2015 13:23 | N31: Otros | O31: 2015-08-01 | P31: 2015-08-01 | Q31: 1
A32: 147111 | B32: Error al importar matrices en Focus test | C32: ROJAS, GUILLERMO | D32: 26/08/2015 10:04 | E32: ROJAS, GUILLERMO | F32: Alta (24 horas) | G32: Finalizado | H32: Error/Bug | I32: Test | J32: HQ -CH | K32: 31/08/2015 13:21 | L32: 31/08/2015 13:21 | N32: Otros | O32: 2015-08-01 | P32: 2015-08-01 | Q32: 1
A33: 147106 | B33: REINICIAR RESPUESTAS RECAT DE LOS SIGUIENTES ID CONTACT | C33: VILLARREAL, ALBERTO | D33: 26/08/2015 09:59 | E33: VILLARREAL, ALBERTO | F33: Alta (24 horas) | G33: Finalizado | H33: Carga Manual de Datos | I33: Por defecto | J33: HQ -MX | K33: 26/08/2015 10:26 | L33: 26/08/2015 10:26 | N33: Otros | O33: 2015-08-01 | P33: 2015-08-01 | Q33: 1
A34: 147098 | B34: VISITAS DUPLICADAS | C34: VILLARREAL, ALBERTO | D34: 26/08/2015 09:52 | E34: VILLARREAL, ALBERTO | F34: Alta (24 horas) | G34: Finalizado | H34: Error/Bug | I34: Produccion | J34: HQ -MX | K34: 27/08/2015 13:42 | L34: 27/08/2015 13:42 | N34: Otros | O34: 2015-08-01 | P34: 2015-08-01 | Q34: 1
A35: 147070 | B35: Focus Lento | C35: SILVA, RENATA | D35: 25/08/2015 18:19 | E35: SILVA, RENATA | F35: Alta (24 horas) | G35: Finalizado | H35: Error/Bug | I35: Produccion | J35: HQ -BR | K35: 27/08/2015 12:35 | L35: 27/08/2015 12:35 | N35: Otros | O35: 2015-08-01 | P35: 2015-08-01 | Q35: 1
A36: 147064 | B36: RESPUESTAS RECAT PENDIENTES DE AUTORIZAR | C36: VILLARREAL, ALBERTO | D36: 25/08/2015 17:34 | E36: VILLARREAL, ALBERTO | F36: Alta (24 horas) | G36: Finalizado | H36: Solicitud de Información | I36: Por defecto | J36: HQ -MX | K36: 25/08/2015 17:44 | L36: 25/08/2015 17:44 | N36: Otros | O36: 2015-08-01 | P36: 2015-08-01 | Q36: 1
A37: 147060 | B37: incorporar columna especialidades vista | C37: PANIAGUA, PEDRO | D37: 25/08/2015 17:12 | E37: PANIAGUA, PEDRO | F37: Alta (24 horas) | G37: Finalizado | H37: Nuevo requerimiento | I37: Estructuras | J37: HQ -CA | K37: 27/08/2015 13:35 | L37: 27/08/2015 13:35 | N37: Otros | O37: 2015-08-01 | P37: 2015-08-01 | Q37: 1
A38: 147057 | B38: Sincronização | C38: SILVA, RENATA | D38: 25/08/2015 16:57 | E38: SILVA, RENATA | F38: Alta (24 horas) | G38: Finalizado | H38: Error/Bug | I38: Produccion | J38: HQ -BR | K38: 25/08/2015 17:30 | L38: 25/08/2015 16:58 | N38: Otros | O38: 2015-08-01 | P38: 2015-08-01 | Q38: 1
A39: 146967 | B39: error al cargar auditoria close up | C39: JUAN CAMILO AMAYA RODRIGUEZ | D39: 25/08/2015 11:38 | E39: JUAN CAMILO AMAYA RODRIGUEZ | F39: Alta (24 horas) | G39: Finalizado | H39: Error/Bug | I39: Produccion | J39: CO -HQ | K39: 27/08/2015 13:38 | L39: 27/08/2015 13:38 | N39: Otros | O39: 2015-08-01 | P39: 2015-08-01 | Q39: 1
A40: 146957 | B40: error al cargar planes de distribucion | C40: JUAN CAMILO AMAYA RODRIGUEZ | D40: 25/08/2015 11:15 | E40: JUAN CAMILO AMAYA RODRIGUEZ | F40: Alta (24 horas) | G40: Finalizado | H40: Error/Bug | I40: Produccion | J40: CO -HQ | K40: 27/08/2015 13:36 | L40: 27/08/2015 13:36 | N40: Otros | O40: 2015-08-01 | P40: 2015-08-01 | Q40: 1
A41: 146941 | B41: Visualización de un solo TAM en Focus Mobile | C41: FLORES, JUAN PABLO | D41: 25/08/2015 10:33 | E41: FLORES, JUAN PABLO | F41: Alta (24 horas) | G41: Finalizado | H41: Carga Manual de Datos | I41: Por defecto | J41: HQ -BV | K41: 25/08/2015 11:06 | L41: 25/08/2015 11:06 | N41: Otros | O41: 2015-08-01 | P41: 2015-08-01 | Q41: 1
A42: 146927 | B42: Copiar BD Focus Producción a Test. | C42: BRIONES, FELIPE | D42: 25/08/2015 08:48 | E42: BRIONES, FELIPE | F42: Alta (24 horas) | G42: Finalizado | H42: Nuevo requerimiento | I42: Por Defecto | J42: HQ -CH | K42: 25/08/2015 11:22 | L42: 25/08/2015 11:04 | N42: Otros | O42: 2015-08-01 | P42: 2015-08-01 | Q42: 1
A43: 146860 | B43: Erro Recat | C43: SILVA, RENATA | D43: 24/08/2015 14:16 | E43: SILVA, RENATA | F43: Alta (24 horas) | G43: Finalizado | H43: Error/Bug | I43: Produccion | J43: HQ -BR | K43: 27/08/2015 12:33 | L43: 27/08/2015 12:33 | N43: Otros | O43: 2015-08-01 | P43: 2015-08-01 | Q43: 1
A44: 146828 | B44: Error al exportar archivos y formato incorrecto | C44: GRANDE, CAROLINA | D44: 24/08/2015 12:24 | E44: GRANDE, CAROLINA | F44: Urgente (4 horas) | G44: Pendiente de Aprobación | H44: Error/Bug | I44: Produccion | J44: HQ -ZA | K44: 25/08/2015 09:51 | N44: Crit/Urge | O44: ABIERTO | P44: 2015-08-01 | Q44: 0
A45: 146820 | B45: Cadastro de nuevas literaturas | C45: MAGALHAES, FERNANDO | D45: 24/08/2015 11:37 | E45: MAGALHAES, FERNANDO | F45: Alta (24 horas) | G45: Finalizado | H45: Carga Manual de Datos | I45: Por defecto | J45: HQ -BR | K45: 25/08/2015 11:07 | L45: 25/08/2015 11:07 | N45: Otros | O45: 2015-08-01 | P45: 2015-08-01 | Q45: 1
A46: 146695 | B46: SERVIDOR 2 | C46: VILLARREAL, ALBERTO | D46: 21/08/2015 15:30 | E46: VILLARREAL, ALBERTO | F46: Alta (24 horas) | G46: Finalizado | H46: Caida de Servicio | I46: Por defecto | J46: HQ -MX | K46: 24/08/2015 15:07 | L46: 24/08/2015 15:07 | N46: Otros | O46: 2015-08-01 | P46: 2015-08-01 | Q46: 1
A47: 146638 | B47: Caracter Invalidos | C47: RIVAS, JAIME | D47: 21/08/2015 11:05 | E47: RIVAS, JAIME | F47: Alta (24 horas) | G47: Finalizado | H47: Carga Manual de Datos | I47: Por defecto | J47: HQ -VE | K47: 24/08/2015 15:05 | L47: 24/08/2015 15:05 | N47: Otros | O47: 2015-08-01 | P47: 2015-08-01 | Q47: 1
A48: 146562 | B48: Erro Recat | C48: SILVA, RENATA | D48: 20/08/2015 17:46 | E48: SILVA, RENATA | F48: Alta (24 horas) | G48: Finalizado | H48: Error/Bug | I48: Produccion | J48: HQ -BR | K48: 24/08/2015 15:06 | L48: 24/08/2015 15:06 | N48: Otros | O48: 2015-08-01 | P48: 2015-08-01 | Q48: 1
A49: 146558 | B49: Erro Recat | C49: SILVA, RENATA | D49: 20/08/2015 17:39 | E49: SILVA, RENATA | F49: Alta (24 horas) | G49: Finalizado | H49: Error/Bug | I49: Produccion | J49: HQ -BR | K49: 24/08/2015 15:01 | L49: 24/08/2015 15:01 | N49: Otros | O49: 2015-08-01 | P49: 2015-08-01 | Q49: 1
A50: 146448 | B50: Visitadores no se les carga el Plan de Distribución. | C50: BRIONES, FELIPE | D50: 20/08/2015 12:05 | E50: BRIONES, FELIPE | F50: Alta (24 horas) | G50: Finalizado | H50: Error/Bug | I50: Desarrollo | J50: HQ -CH | K50: 21/08/2015 10:21 | L50: 21/08/2015 10:21 | N50: Otros | O50: 2015-08-01 | P50: 2015-08-01 | Q50: 1
A51: 146417 | B51: Excluir material e amostras do Plano de Distribuicion | C51: MAGALHAES, FERNANDO | D51: 20/08/2015 10:17 | E51: MAGALHAES, FERNANDO | F51: Alta (24 horas) | G51: Finalizado | H51: Carga Manual de Datos | I51: Por defecto | J51: HQ -BR | K51: 24/08/2015 14:02 | L51: 24/08/2015 14:02 | N51: Otros | O51: 2015-08-01 | P51: 2015-08-01 | Q51: 1
A52: 146377 | B52: Cambiar marcas en focus | C52: RUIZ, PATRICIA | D52: 19/08/2015 17:50 | E52: RUIZ, PATRICIA | F52: Alta (24 horas) | G52: Finalizado | H52: Carga Manual de Datos | I52: Por defecto | J52: HQ -RD | K52: 20/08/2015 09:50 | L52: 19/08/2015 18:29 | N52: Otros | O52: 2015-08-01 | P52: 2015-08-01 | Q52: 1
A53: 146285 | B53: Dejar Productos de contacto y productos de cliente como recordatorio | C53: BRIONES, FELIPE | D53: 19/08/2015 11:12 | E53: BRIONES, FELIPE | F53: Alta (24 horas) | G53: Finalizado | H53: Carga Manual de Datos | I53: Por defecto | J53: HQ -CH | K53: 21/08/2015 09:43 | L53: 21/08/2015 09:43 | N53: Otros | O53: 2015-08-01 | P53: 2015-08-01 | Q53: 1
A54: 146152 | B54: Erro Sincronização | C54: SILVA, RENATA | D54: 18/08/2015 16:38 | E54: SILVA, RENATA | F54: Alta (24 horas) | G54: Finalizado | H54: Error/Bug | I54: Produccion | J54: HQ -BR | K54: 20/08/2015 16:27 | L54: 20/08/2015 16:27 | N54: Otros | O54: 2015-08-01 | P54: 2015-08-01 | Q54: 1
A55: 146150 | B55: Envio de mail | C55: RODRIGUEZ, VICTORINO | D55: 18/08/2015 16:29 | E55: RODRIGUEZ, VICTORINO | F55: Alta (24 horas) | G55: Finalizado | H55: Error/Bug | I55: Desarrollo | J55: HQ -CH | K55: 19/08/2015 18:02 | L55: 19/08/2015 18:02 | N55: Otros | O55: 2015-08-01 | P55: 2015-08-01 | Q55: 1
A56: 146081 | B56: promos de xtandi a CPR en UY | C56: KOHR, KAREN | D56: 18/08/2015 11:53 | E56: KOHR, KAREN | F56: Alta (24 horas) | G56: Finalizado | H56: Carga Manual de Datos | I56: Por defecto | J56: HQ -ZA | K56: 20/08/2015 19:00 | L56: 20/08/2015 19:00 | N56: Otros | O56: 2015-08-01 | P56: 2015-08-01 | Q56: 1
A57: 145938 | B57: Asignación de claves de acceso a Integra | C57: XIMENA TERAN | D57: 17/08/2015 12:58 | E57: XIMENA TERAN | F57: Alta (24 horas) | G57: Finalizado | H57: Nuevo requerimiento | I57: Acciones | J57: HQ -EQ | K57: 17/08/2015 16:51 | L57: 17/08/2015 16:51 | N57: Otros | O57: 2015-08-01 | P57: 2015-08-01 | Q57: 1
A58: 145773 | B58: Borrar Close Up Focus | C58: SOTELO, ISRAEL | D58: 14/08/2015 14:17 | E58: SOTELO, ISRAEL | F58: Alta (24 horas) | G58: Finalizado | H58: Carga Manual de Datos | I58: Por defecto | J58: HQ -PE | K58: 14/08/2015 14:29 | L58: 14/08/2015 14:29 | N58: Otros | O58: 2015-08-01 | P58: 2015-08-01 | Q58: 1
A59: 145735 | B59: Reinicio de Fracuencia | C59: MAYELA DE LA LUZ HERNANDEZ | D59: 14/08/2015 10:48 | E59: MAYELA DE LA LUZ HERNANDEZ | F59: Alta (24 horas) | G59: Finalizado | H59: Carga Manual de Datos | I59: Por defecto | J59: HQ -MX | K59: 14/08/2015 12:22 | L59: 14/08/2015 12:22 | N59: Otros | O59: 2015-08-01 | P59: 2015-08-01 | Q59: 1
A60: 145520 | B60: Error al dar alta en contactos con promoción 0 | C60: JANETH NAVARRETE | D60: 12/08/2015 18:29 | E60: PALACIOS, CRISTHIAN | F60: Alta (24 horas) | G60: En Desarrollo IT | H60: Error/Bug | I60: Produccion | J60: HQ -EQ | K60: 14/08/2015 13:06 | N60: Otros | O60: ABIERTO | P60: 2015-08-01 | Q60: 0
A61: 145504 | B61: planes de promocion con productos que no se promocionan | C61: KOHR, KAREN | D61: 12/08/2015 16:44 | E61: KOHR, KAREN | F61: Alta (24 horas) | G61: Finalizado | H61: Error/Bug | I61: Produccion | J61: HQ -BV | K61: 01/09/2015 17:53 | L61: 01/09/2015 17:53 | N61: Otros | O61: 2015-09-01 | P61: 2015-08-01 | Q61: 0
A62: 145448 | B62: Vista V Coberturas | C62: SOTELO, ISRAEL | D62: 12/08/2015 13:38 | E62: SOTELO, ISRAEL | F62: Alta (24 horas) | G62: Finalizado | H62: Solicitud de Información | I62: Por defecto | J62: HQ -PE | K62: 12/08/2015 16:16 | L62: 12/08/2015 16:16 | N62: Otros | O62: 2015-08-01 | P62: 2015-08-01 | Q62: 1
A63: 145439 | B63: Error sin descripción al recategorizar | C63: GUTIERREZ, EDUARDO | D63: 12/08/2015 12:30 | E63: PALACIOS, CRISTHIAN | F63: Alta (24 horas) | G63: En Desarrollo IT | H63: Error/Bug | I63: Produccion | J63: HQ -PY | K63: 14/08/2015 10:12 | N63: Otros | O63: ABIERTO | P63: 2015-08-01 | Q63: 0
A64: 145263 | B64: Actualizacion Promciones Focus Ole | C64: SOTELO, ISRAEL | D64: 11/08/2015 13:03 | E64: SOTELO, ISRAEL | F64: Alta (24 horas) | G64: Finalizado | H64: Carga Manual de Datos | I64: Por defecto | J64: HQ -PE | K64: 11/08/2015 14:00 | L64: 11/08/2015 14:00 | N64: Otros | O64: 2015-08-01 | P64: 2015-08-01 | Q64: 1
A65: 145248 | B65: Crear Congelado. | C65: BRIONES, FELIPE | D65: 11/08/2015 12:30 | E65: BRIONES, FELIPE | F65: Alta (24 horas) | G65: Finalizado | H65: Carga Manual de Datos | I65: Por defecto | J65: HQ -CH | K65: 11/08/2015 14:23 | L65: 11/08/2015 14:23 | N65: Otros | O65: 2015-08-01 | P65: 2015-08-01 | Q65: 1
A66: 145244 | B66: Cargar Productos para Linea General. | C66: BRIONES, FELIPE | D66: 11/08/2015 12:24 | E66: BRIONES, FELIPE | F66: Alta (24 horas) | G66: Finalizado | H66: Carga Manual de Datos | I66: Por defecto | J66: HQ -CH | K66: 11/08/2015 14:21 | L66: 11/08/2015 14:21 | N66: =IF(F66="","",IF(OR(F66="Urgente (4 horas)",F66="Crítica (8 horas)"),"Crit/Urge","Otros")) -> Otros | O66: =IF(A66="","",IF(L66="","ABIERTO",DATE(VALUE(MID(L66,7,4)),VALUE(MID(L66,4,2)),1))) -> 2015-08-01 | P66: =IF(A66="","",DATE(VALUE(MID(D66,7,4)),VALUE(MID(D66,4,2)),1)) -> 2015-08-01 | Q66: =IF(A66="","",IF(AND(P66=O66, G66="Finalizado"),1,0)) -> 1
A67: 145040 | B67: No se puede ver Agenda. | C67: BRIONES, FELIPE | D67: 10/08/2015 13:11 | E67: BRIONES, FELIPE | F67: Alta (24 horas) | G67: Finalizado | H67: Error/Bug | I67: Produccion | J67: HQ -CH | K67: 11/08/2015 14:08 | L67: 11/08/2015 14:08 | N67: Otros | O67: 2015-08-01 | P67: 2015-08-01 | Q67: 1
A68: 145023 | B68: soicitud vagenda actualizada | C68: JUAN CAMILO AMAYA RODRIGUEZ | D68: 10/08/2015 12:03 | E68: JUAN CAMILO AMAYA RODRIGUEZ | F68: Alta (24 horas) | G68: Finalizado | H68: Solicitud de Información | I68: Por defecto | J68: CO -HQ | K68: 10/08/2015 13:05 | L68: 10/08/2015 13:05 | N68: Otros | O68: 2015-08-01 | P68: 2015-08-01 | Q68: 1
A69: 144935 | B69: Erro de Sincronização | C69: SILVA, RENATA | D69: 07/08/2015 16:29 | E69: SILVA, RENATA | F69: Alta (24 horas) | G69: Finalizado | H69: Error/Bug | I69: Desarrollo | J69: HQ -BR | K69: 11/08/2015 14:06 | L69: 11/08/2015 14:06 | N69: Otros | O69: 2015-08-01 | P69: 2015-08-01 | Q69: 1
A70: 144928 | B70: Medicos no aparecen en la BD | C70: RUIZ, PATRICIA | D70: 07/08/2015 16:06 | E70: RUIZ, PATRICIA | F70: Alta (24 horas) | G70: Finalizado | H70: Error/Bug | I70: Produccion | J70: HQ -RD | K70: 12/08/2015 12:48 | L70: 12/08/2015 12:48 | N70: Otros | O70: 2015-08-01 | P70: 2015-08-01 | Q70: 1
A71: 144917 | B71: Imposible editar contactos desde la web | C71: GUTIERREZ, EDUARDO | D71: 07/08/2015 14:57 | E71: GUTIERREZ, EDUARDO | F71: Alta (24 horas) | G71: Finalizado | H71: Error/Bug | I71: Produccion | J71: HQ -PY | K71: 11/08/2015 11:01 | L71: 11/08/2015 11:01 | N71: Otros | O71: 2015-08-01 | P71: 2015-08-01 | Q71: 1
A72: 144907 | B72: Vistas | C72: SILVA, RENATA | D72: 07/08/2015 13:40 | E72: SILVA, RENATA | F72: Alta (24 horas) | G72: Finalizado | H72: Solicitud de Información | I72: Por defecto | J72: HQ -BR | K72: 10/08/2015 11:26 | L72: 10/08/2015 11:26 | N72: Otros | O72: 2015-08-01 | P72: 2015-08-01 | Q72: 1
A73: 144848 | B73: Eliminar Close Up de Mayo y Junio | C73: ADRIANA SANCHEZ | D73: 06/08/2015 20:37 | E73: ADRIANA SANCHEZ | F73: Alta (24 horas) | G73: Finalizado | H73: Carga Manual de Datos | I73: Por defecto | J73: HQ -MX | K73: 10/08/2015 10:58 | L73: 10/08/2015 10:58 | N73: Otros | O73: 2015-08-01 | P73: 2015-08-01 | Q73: 1
A74: 144841 | B74: Error en registro de visita | C74: JANETH NAVARRETE | D74: 06/08/2015 18:11 | E74: JANETH NAVARRETE | F74: Urgente (4 horas) | G74: Finalizado | H74: Error/Bug | I74: Desarrollo | J74: HQ -EQ | K74: 07/08/2015 13:42 | L74: 07/08/2015 13:42 | N74: Crit/Urge | O74: 2015-08-01 | P74: 2015-08-01 | Q74: 1
A75: 144785 | B75: Diferenca de numero de medicos Tablet x Focus WEB X Vpadrones | C75: MAGALHAES, FERNANDO | D75: 06/08/2015 14:55 | E75: MAGALHAES, FERNANDO | F75: Alta (24 horas) | G75: Finalizado | H75: Error/Bug | I75: Desarrollo | J75: HQ -BR | K75: 11/08/2015 14:20 | L75: 11/08/2015 14:20 | N75: Otros | O75: 2015-08-01 | P75: 2015-08-01 | Q75: 1
A76: 144752 | B76: VISTA DE RESPUESTAS RECAT | C76: VILLARREAL, ALBERTO | D76: 06/08/2015 12:13 | E76: VILLARREAL, ALBERTO | F76: Alta (24 horas) | G76: Finalizado | H76: Solicitud de Información | I76: Por defecto | J76: HQ -MX | K76: 10/08/2015 10:57 | L76: 10/08/2015 10:57 | N76: Otros | O76: 2015-08-01 | P76: 2015-08-01 | Q76: 1
A77: 144723 | B77: No se puede ver agenda. | C77: BRIONES, FELIPE | D77: 06/08/2015 10:50 | E77: BRIONES, FELIPE | F77: Alta (24 horas) | G77: Finalizado | H77: Error/Bug | I77: Desarrollo | J77: HQ -CH | K77: 11/08/2015 14:04 | L77: 11/08/2015 14:04 | N77: Otros | O77: 2015-08-01 | P77: 2015-08-01 | Q77: 1
A78: 144696 | B78: Errores al modificar contactos | C78: GUTIERREZ, EDUARDO | D78: 06/08/2015 09:50 | E78: GUTIERREZ, EDUARDO | F78: Alta (24 horas) | G78: Finalizado | H78: Error/Bug | I78: Produccion | J78: HQ -PY | K78: 11/08/2015 09:51 | L78: 11/08/2015 09:51 | N78: Otros | O78: 2015-08-01 | P78: 2015-08-01 | Q78: 1
A79: 144687 | B79: Limpeza Arquivos Audit | C79: SILVA, RENATA | D79: 06/08/2015 09:27 | E79: SILVA, RENATA | F79: Alta (24 horas) | G79: Finalizado | H79: Carga Manual de Datos | I79: Por defecto | J79: HQ -BR | K79: 10/08/2015 10:20 | L79: 10/08/2015 10:20 | N79: Otros | O79: 2015-08-01 | P79: 2015-08-01 | Q79: 1
A80: 144638 | B80: Erro Focus | C80: SILVA, RENATA | D80: 05/08/2015 16:19 | E80: SILVA, RENATA | F80: Alta (24 horas) | G80: Finalizado | H80: Error/Bug | I80: Desarrollo | J80: HQ -BR | K80: 10/08/2015 10:18 | L80: 10/08/2015 10:18 | N80: Otros | O80: 2015-08-01 | P80: 2015-08-01 | Q80: 1
A81: 144631 | B81: Generar Archivo vcobertura | C81: BRIONES, FELIPE | D81: 05/08/2015 16:00 | E81: BRIONES, FELIPE | F81: Crítica (8 horas) | G81: Finalizado | H81: Nuevo requerimiento | I81: Reportes | J81: HQ -CH | K81: 06/08/2015 09:29 | L81: 06/08/2015 09:29 | N81: Crit/Urge | O81: 2015-08-01 | P81: 2015-08-01 | Q81: 1
A82: 144628 | B82: error al crear un plan de distribución en versión test | C82: JANETH NAVARRETE | D82: 05/08/2015 15:50 | E82: LEIS, DAMIAN | F82: Urgente (4 horas) | G82: Cancelado | H82: Solicitud de Información | I82: Por defecto | J82: HQ -EQ | K82: 05/08/2015 17:47 | L82: 05/08/2015 17:47 | N82: Crit/Urge | O82: 2015-08-01 | P82: 2015-08-01 | Q82: 0
A83: 144540 | B83: Recordatorios no cargaron la información. | C83: BRIONES, FELIPE | D83: 05/08/2015 11:03 | E83: BRIONES, FELIPE | F83: Alta (24 horas) | G83: Finalizado | H83: Carga Manual de Datos | I83: Por defecto | J83: HQ -CH | K83: 11/08/2015 14:02 | L83: 11/08/2015 14:02 | N83: Otros | O83: 2015-08-01 | P83: 2015-08-01 | Q83: 1
A84: 144535 | B84: Problemas para poder registrar las visitas. | C84: BRIONES, FELIPE | D84: 05/08/2015 10:55 | E84: BRIONES, FELIPE | F84: Urgente (4 horas) | G84: Finalizado | H84: Error/Bug | I84: Produccion | J84: HQ -CH | K84: 07/08/2015 11:48 | L84: 07/08/2015 11:48 | N84: Crit/Urge | O84: 2015-08-01 | P84: 2015-08-01 | Q84: 1
A85: 144527 | B85: Sincronização | C85: SILVA, RENATA | D85: 05/08/2015 10:38 | E85: SILVA, RENATA | F85: Alta (24 horas) | G85: Finalizado | H85: Error/Bug | I85: Produccion | J85: HQ -BR | K85: 11/08/2015 10:59 | L85: 11/08/2015 10:59 | N85: Otros | O85: 2015-08-01 | P85: 2015-08-01 | Q85: 1
A86: 144497 | B86: Grade Promocional - Tridevit | C86: SILVA, RENATA | D86: 05/08/2015 09:13 | E86: SILVA, RENATA | F86: Alta (24 horas) | G86: Finalizado | H86: Consulta | I86: Por defecto | J86: HQ -BR | K86: 05/08/2015 15:29 | L86: 05/08/2015 15:29 | N86: Otros | O86: 2015-08-01 | P86: 2015-08-01 | Q86: 1
A87: 144456 | B87: Generar Congelado APM | C87: BRIONES, FELIPE | D87: 04/08/2015 17:02 | E87: BRIONES, FELIPE | F87: Crítica (8 horas) | G87: Finalizado | H87: Nuevo requerimiento | I87: Acciones | J87: HQ -CH | K87: 05/08/2015 15:55 | L87: 05/08/2015 15:55 | N87: Crit/Urge | O87: 2015-08-01 | P87: 2015-08-01 | Q87: 1
A88: 144444 | B88: Generar Vistas de Focus. | C88: BRIONES, FELIPE | D88: 04/08/2015 16:43 | E88: BRIONES, FELIPE | F88: Crítica (8 horas) | G88: Finalizado | H88: Solicitud de Información | I88: Por defecto | J88: HQ -CH | K88: 05/08/2015 15:54 | L88: 05/08/2015 15:54 | N88: Crit/Urge | O88: 2015-08-01 | P88: 2015-08-01 | Q88: 1
A89: 144435 | B89: Error WorkFlow | C89: RUIZ, PATRICIA | D89: 04/08/2015 16:15 | E89: RUIZ, PATRICIA | F89: Alta (24 horas) | G89: Finalizado | H89: Error/Bug | I89: Produccion | J89: HQ -RD | K89: 11/08/2015 14:18 | L89: 11/08/2015 14:18 | N89: Otros | O89: 2015-08-01 | P89: 2015-08-01 | Q89: 1
A90: 144400 | B90: solicitud vista actualizada vpadrones vsegmentacionpadron vvisitas | C90: JUAN CAMILO AMAYA RODRIGUEZ | D90: 04/08/2015 13:49 | E90: JUAN CAMILO AMAYA RODRIGUEZ | F90: Alta (24 horas) | G90: Finalizado | H90: Solicitud de Información | I90: Por defecto | J90: CO -HQ | K90: 10/08/2015 10:56 | L90: 10/08/2015 10:56 | N90: Otros | O90: 2015-08-01 | P90: 2015-08-01 | Q90: 1
A91: 144349 | B91: Solitud de Detalle de Supervisores y APMs participantes de cada encuesta de Racategorización | C91: FLORES, JUAN PABLO | D91: 04/08/2015 11:33 | E91: FLORES, JUAN PABLO | F91: Alta (24 horas) | G91: Finalizado | H91: Solicitud de Información | I91: Por defecto | J91: HQ -BV | K91: 04/08/2015 14:52 | L91: 04/08/2015 14:52 | N91: Otros | O91: 2015-08-01 | P91: 2015-08-01 | Q91: 1
A92: 144336 | B92: vistas BV | C92: KOHR, KAREN | D92: 04/08/2015 10:36 | E92: KOHR, KAREN | F92: Alta (24 horas) | G92: Finalizado | H92: Solicitud de Información | I92: Por defecto | J92: HQ -ZA | K92: 11/08/2015 10:31 | L92: 11/08/2015 10:31 | N92: Otros | O92: 2015-08-01 | P92: 2015-08-01 | Q92: 1
A93: 144266 | B93: creacion de Carteras Marisol Avila | C93: JUAN CAMILO AMAYA RODRIGUEZ | D93: 03/08/2015 17:09 | E93: JUAN CAMILO AMAYA RODRIGUEZ | F93: Alta (24 horas) | G93: Finalizado | H93: Carga Manual de Datos | I93: Por defecto | J93: CO -HQ | K93: 10/08/2015 10:45 | L93: 10/08/2015 10:45 | N93: Otros | O93: 2015-08-01 | P93: 2015-08-01 | Q93: 1
A94: 144247 | B94: Error al sincronizar Focus Mobile Versión Prueba. | C94: BRIONES, FELIPE | D94: 03/08/2015 16:11 | E94: LEIS, DAMIAN | F94: Crítica (8 horas) | G94: Finalizado | H94: Error/Bug | I94: Test | J94: HQ -CH | K94: 12/08/2015 09:39 | L94: 12/08/2015 09:39 | N94: Crit/Urge | O94: 2015-08-01 | P94: 2015-08-01 | Q94: 1
A95: 144246 | B95: CREACIÓN CÓDIGOS NUEVOS EN FOCUS | C95: JANETH NAVARRETE | D95: 03/08/2015 16:09 | E95: JANETH NAVARRETE | F95: Urgente (4 horas) | G95: Finalizado | H95: Carga Manual de Datos | I95: Por defecto | J95: HQ -EQ | K95: 03/08/2015 23:20 | L95: 03/08/2015 23:20 | N95: Crit/Urge | O95: 2015-08-01 | P95: 2015-08-01 | Q95: 1
A96: 144243 | B96: Erro Focus - Aprovar tarefa | C96: SILVA, RENATA | D96: 03/08/2015 15:58 | E96: SILVA, RENATA | F96: Alta (24 horas) | G96: Finalizado | H96: Error/Bug | I96: Desarrollo | J96: HQ -BR | K96: 10/08/2015 12:35 | L96: 10/08/2015 12:35 | N96: Otros | O96: 2015-08-01 | P96: 2015-08-01 | Q96: 1
A97: 144210 | B97: VISTAS RESPUESTAS RECAT | C97: VILLARREAL, ALBERTO | D97: 03/08/2015 14:04 | E97: VILLARREAL, ALBERTO | F97: Crítica (8 horas) | G97: Finalizado | H97: Solicitud de Información | I97: Por defecto | J97: HQ -MX | K97: 06/08/2015 12:09 | L97: 06/08/2015 12:09 | N97: Crit/Urge | O97: 2015-08-01 | P97: 2015-08-01 | Q97: 1
A98: 144206 | B98: AJUSTE DE FRECUENCIAS APM OSCAR HERNANDEZ | C98: VILLARREAL, ALBERTO | D98: 03/08/2015 13:27 | E98: VILLARREAL, ALBERTO | F98: Alta (24 horas) | G98: Finalizado | H98: Carga Manual de Datos | I98: Por defecto | J98: HQ -MX | K98: 10/08/2015 11:33 | L98: 10/08/2015 11:33 | N98: Otros | O98: 2015-08-01 | P98: 2015-08-01 | Q98: 1
A99: 144204 | B99: Error Al Momento De Cargar Matrices | C99: SOTELO, ISRAEL | D99: 03/08/2015 13:21 | E99: SOTELO, ISRAEL | F99: Alta (24 horas) | G99: Finalizado | H99: Error/Bug | I99: Desarrollo | J99: HQ -PE | K99: 10/08/2015 12:24 | L99: 10/08/2015 12:24 | N99: Otros | O99: 2015-08-01 | P99: 2015-08-01 | Q99: 1
A100: 144191 | B100: VISTAS DE VVISITAS Y V PADRONES | C100: VILLARREAL, ALBERTO | D100: 03/08/2015 12:37 | E100: VILLARREAL, ALBERTO | F100: Alta (24 horas) | G100: Finalizado | H100: Solicitud de Información | I100: Por defecto | J100: HQ -MX | K100: 06/08/2015 12:10 | L100: 06/08/2015 12:10 | N100: Otros | O100: 2015-08-01 | P100: 2015-08-01 | Q100: 1
A101: 144177 | B101: Vistas ciclo 07 | C101: SILVA, RENATA | D101: 03/08/2015 11:53 | E101: SILVA, RENATA | F101: Alta (24 horas) | G101: Finalizado | H101: Error/Bug | I101: Produccion | J101: HQ -BR | K101: 10/08/2015 11:29 | L101: 10/08/2015 11:29 | N101: Otros | O101: 2015-08-01 | P101: 2015-08-01 | Q101: 1
A102: 144160 | B102: Vistas Focus. | C102: BRIONES, FELIPE | D102: 03/08/2015 10:58 | E102: BRIONES, FELIPE | F102: Urgente (4 horas) | G102: Finalizado | H102: Solicitud de Información | I102: Por defecto | J102: HQ -CH | K102: 03/08/2015 12:41 | L102: 03/08/2015 12:41 | N102: Crit/Urge | O102: 2015-08-01 | P102: 2015-08-01 | Q102: 1
A103: 144137 | B103: Erro Focus | C103: SILVA, RENATA | D103: 03/08/2015 10:22 | E103: SILVA, RENATA | F103: Alta (24 horas) | G103: Finalizado | H103: Error/Bug | I103: Produccion | J103: HQ -BR | K103: 04/08/2015 16:03 | L103: 04/08/2015 16:03 | N103: Otros | O103: 2015-08-01 | P103: 2015-08-01 | Q103: 1
A104: 144129 | B104: Error al Sincronizar. | C104: BRIONES, FELIPE | D104: 03/08/2015 10:13 | E104: BRIONES, FELIPE | F104: Urgente (4 horas) | G104: Finalizado | H104: Consulta | I104: Por defecto | J104: HQ -CH | K104: 04/08/2015 16:39 | L104: 04/08/2015 16:39 | N104: Crit/Urge | O104: 2015-08-01 | P104: 2015-08-01 | Q104: 1
A105: 144118 | B105: Movimiento en FFVV | C105: BRIONES, FELIPE | D105: 03/08/2015 09:18 | E105: LEIS, DAMIAN | F105: Urgente (4 horas) | G105: Cancelado | H105: Nuevo requerimiento | I105: FFVV | J105: CH | K105: 03/08/2015 09:29 | L105: 03/08/2015 09:29 | N105: Crit/Urge | O105: 2015-08-01 | P105: 2015-08-01 | Q105: 0
A106: 144082 | B106: Error sincronizacion Focus | C106: RUIZ, PATRICIA | D106: 31/07/2015 17:04 | E106: RUIZ, PATRICIA | F106: Alta (24 horas) | G106: Finalizado | H106: Error/Bug | I106: Produccion | J106: HQ -RD | K106: 18/08/2015 09:54 | L106: 18/08/2015 09:54 | N106: Otros | O106: 2015-08-01 | P106: 2015-07-01 | Q106: 0
A107: 144054 | B107: Inconveniente con asociacion de marcas de Focus al Tablero de Marketing | C107: PANIAGUA, PEDRO | D107: 31/07/2015 15:34 | E107: PANIAGUA, PEDRO | F107: Alta (24 horas) | G107: Finalizado | H107: Error/Bug | I107: Desarrollo | J107: HQ -CA | K107: 10/08/2015 09:53 | L107: 31/07/2015 16:12 | N107: Otros | O107: 2015-07-01 | P107: 2015-07-01 | Q107: 1
A108: 144031 | B108: Materiales nuevos en Focus | C108: ROJAS, GUILLERMO | D108: 31/07/2015 14:53 | E108: ROJAS, GUILLERMO | F108: Alta (24 horas) | G108: Finalizado | H108: Carga Manual de Datos | I108: Por defecto | J108: HQ -CH | K108: 10/08/2015 10:40 | L108: 10/08/2015 10:40 | N108: Otros | O108: 2015-08-01 | P108: 2015-07-01 | Q108: 0
A109: 144016 | B109: Exclusao de el producto en lo plano de promocion | C109: MAGALHAES, FERNANDO | D109: 31/07/2015 13:12 | E109: MAGALHAES, FERNANDO | F109: Alta (24 horas) | G109: Finalizado | H109: Carga Manual de Datos | I109: Por defecto | J109: HQ -BR | K109: 10/08/2015 10:39 | L109: 10/08/2015 10:39 | N109: Otros | O109: 2015-08-01 | P109: 2015-07-01 | Q109: 0
A110: 143999 | B110: Error en las aprobaciones de modificaciones en Guatemala | C110: PANIAGUA, PEDRO | D110: 31/07/2015 12:08 | E110: PANIAGUA, PEDRO | F110: Alta (24 horas) | G110: Finalizado | H110: Error/Bug | I110: Produccion | J110: HQ -CA | K110: 10/08/2015 09:51 | L110: 10/08/2015 09:51 | N110: Otros | O110: 2015-08-01 | P110: 2015-07-01 | Q110: 0
A111: 143969 | B111: VISTA RESPUESTAS RECAT | C111: VILLARREAL, ALBERTO | D111: 31/07/2015 10:33 | E111: VILLARREAL, ALBERTO | F111: Urgente (4 horas) | G111: Finalizado | H111: Solicitud de Información | I111: Por defecto | J111: HQ -MX | K111: 03/08/2015 13:58 | L111: 03/08/2015 13:58 | N111: Crit/Urge | O111: 2015-08-01 | P111: 2015-07-01 | Q111: 0
A112: 143932 | B112: ERROR EN CONTACTO 1430006 | C112: VILLARREAL, ALBERTO | D112: 30/07/2015 19:36 | E112: LEIS, DAMIAN | F112: Alta (24 horas) | G112: En Desarrollo IT | H112: Error/Bug | I112: Test | J112: HQ -MX | K112: 04/08/2015 14:17 | N112: Otros | O112: ABIERTO | P112: 2015-07-01 | Q112: 0
A113: 143897 | B113: solicitud vista actualizada vpadrones | C113: JUAN CAMILO AMAYA RODRIGUEZ | D113: 30/07/2015 16:40 | E113: JUAN CAMILO AMAYA RODRIGUEZ | F113: Urgente (4 horas) | G113: Finalizado | H113: Solicitud de Información | I113: Por defecto | J113: CO -HQ | K113: 30/07/2015 17:22 | L113: 30/07/2015 17:22 | N113: Crit/Urge | O113: 2015-07-01 | P113: 2015-07-01 | Q113: 1
A114: 143895 | B114: error al crear nuevos clientes | C114: JUAN CAMILO AMAYA RODRIGUEZ | D114: 30/07/2015 16:33 | E114: JUAN CAMILO AMAYA RODRIGUEZ | F114: Alta (24 horas) | G114: Finalizado | H114: Error/Bug | I114: Produccion | J114: CO -HQ | K114: 01/09/2015 17:47 | L114: 01/09/2015 17:47 | N114: Otros | O114: 2015-09-01 | P114: 2015-07-01 | Q114: 0
A115: 143882 | B115: Crear nuevo Producto | C115: RUIZ, PATRICIA | D115: 30/07/2015 15:57 | E115: RUIZ, PATRICIA | F115: Alta (24 horas) | G115: Finalizado | H115: Nuevo requerimiento | I115: Plan distribución | J115: HQ -RD | K115: 10/08/2015 09:50 | L115: 10/08/2015 09:50 | N115: Otros | O115: 2015-08-01 | P115: 2015-07-01 | Q115: 0
A116: 143838 | B116: Vista vcloseup | C116: SOTELO, ISRAEL | D116: 30/07/2015 13:42 | E116: SOTELO, ISRAEL | F116: Urgente (4 horas) | G116: Finalizado | H116: Solicitud de Información | I116: Por defecto | J116: HQ -PE | K116: 30/07/2015 14:33 | L116: 30/07/2015 14:33 | N116: Crit/Urge | O116: 2015-07-01 | P116: 2015-07-01 | Q116: 1
A117: 143834 | B117: VISTAS RECAT | C117: MAYELA DE LA LUZ HERNANDEZ | D117: 30/07/2015 12:55 | E117: MAYELA DE LA LUZ HERNANDEZ | F117: Urgente (4 horas) | G117: Finalizado | H117: Solicitud de Información | I117: Por defecto | J117: HQ -MX | K117: 31/07/2015 10:29 | L117: 31/07/2015 10:29 | N117: Crit/Urge | O117: 2015-07-01 | P117: 2015-07-01 | Q117: 1
A118: 143798 | B118: Pendente de Aprovação | C118: SILVA, RENATA | D118: 30/07/2015 11:26 | E118: SILVA, RENATA | F118: Alta (24 horas) | G118: Finalizado | H118: Consulta | I118: Por defecto | J118: HQ -BR | K118: 04/08/2015 16:04 | L118: 04/08/2015 16:04 | N118: Otros | O118: 2015-08-01 | P118: 2015-07-01 | Q118: 0
A119: 143720 | B119: REINICIAR RESPUESTAS RECAT DE LOS SIGUIENTES ID CONTACT | C119: VILLARREAL, ALBERTO | D119: 29/07/2015 16:45 | E119: VILLARREAL, ALBERTO | F119: Alta (24 horas) | G119: Finalizado | H119: Carga Manual de Datos | I119: Por defecto | J119: HQ -MX | K119: 31/07/2015 10:31 | L119: 31/07/2015 10:31 | N119: Otros | O119: 2015-07-01 | P119: 2015-07-01 | Q119: 1
A120: 143649 | B120: Erro Focus | C120: SILVA, RENATA | D120: 29/07/2015 10:30 | E120: SILVA, RENATA | F120: Alta (24 horas) | G120: Cancelado | H120: Consulta | I120: Por defecto | J120: BR | K120: 29/07/2015 14:36 | L120: 29/07/2015 14:36 | N120: Otros | O120: 2015-07-01 | P120: 2015-07-01 | Q120: 0
A121: 143646 | B121: Erro Focus | C121: SILVA, RENATA | D121: 29/07/2015 10:26 | E121: SILVA, RENATA | F121: Alta (24 horas) | G121: Cancelado | H121: Consulta | I121: Por defecto | J121: HQ -BR | K121: 29/07/2015 14:37 | L121: 29/07/2015 14:37 | N121: Otros | O121: 2015-07-01 | P121: 2015-07-01 | Q121: 0
A122: 143642 | B122: Erro Focus | C122: SILVA, RENATA | D122: 29/07/2015 10:18 | E122: SILVA, RENATA | F122: Alta (24 horas) | G122: Finalizado | H122: Error/Bug | I122: Produccion | J122: HQ -BR | K122: 31/07/2015 15:02 | L122: 31/07/2015 15:02 | N122: Otros | O122: 2015-07-01 | P122: 2015-07-01 | Q122: 1
A123: 143631 | B123: Erro en sistema de Recat - Configuracion de Marca | C123: MAGALHAES, FERNANDO | D123: 29/07/2015 09:58 | E123: MAGALHAES, FERNANDO | F123: Alta (24 horas) | G123: Finalizado | H123: Error/Bug | I123: Produccion | J123: HQ -BR | K123: 10/08/2015 09:49 | L123: 10/08/2015 09:49 | N123: Otros | O123: 2015-08-01 | P123: 2015-07-01 | Q123: 0
A124: 143630 | B124: Grade Promocional | C124: SILVA, RENATA | D124: 29/07/2015 09:56 | E124: SILVA, RENATA | F124: Alta (24 horas) | G124: Finalizado | H124: Consulta | I124: Por defecto | J124: HQ -BR | K124: 30/07/2015 11:45 | L124: 30/07/2015 11:45 | N124: Otros | O124: 2015-07-01 | P124: 2015-07-01 | Q124: 1
A125: 143621 | B125: Erro Focus | C125: SILVA, RENATA | D125: 29/07/2015 09:30 | E125: SILVA, RENATA | F125: Alta (24 horas) | G125: Finalizado | H125: Error/Bug | I125: Produccion | J125: HQ -BR | K125: 12/08/2015 18:26 | L125: 12/08/2015 18:26 | N125: Otros | O125: 2015-08-01 | P125: 2015-07-01 | Q125: 0
A126: 143604 | B126: ACTUALIZACION DE PRODUCTOS | C126: JUAN CAMILO AMAYA RODRIGUEZ | D126: 28/07/2015 19:15 | E126: JUAN CAMILO AMAYA RODRIGUEZ | F126: Alta (24 horas) | G126: Finalizado | H126: Carga Manual de Datos | I126: Por defecto | J126: CO -HQ | K126: 10/08/2015 10:37 | L126: 10/08/2015 10:37 | N126: Otros | O126: 2015-08-01 | P126: 2015-07-01 | Q126: 0
A127: 143603 | B127: perdida de la recategorizacion | C127: JUAN CAMILO AMAYA RODRIGUEZ | D127: 28/07/2015 19:00 | E127: JUAN CAMILO AMAYA RODRIGUEZ | F127: Alta (24 horas) | G127: Finalizado | H127: Error/Bug | I127: Produccion | J127: CO -HQ | K127: 10/08/2015 10:36 | L127: 10/08/2015 10:36 | N127: Otros | O127: 2015-08-01 | P127: 2015-07-01 | Q127: 0
A128: 143596 | B128: ERROR EN PRODUCTOS QUE EN FRECUENCIA DE MARCA DEBE ESTAR EN 0 | C128: JANETH NAVARRETE | D128: 28/07/2015 17:57 | E128: JANETH NAVARRETE | F128: Urgente (4 horas) | G128: Finalizado | H128: Carga Manual de Datos | I128: Por defecto | J128: HQ -EQ | K128: 29/07/2015 13:06 | L128: 29/07/2015 13:06 | N128: Crit/Urge | O128: 2015-07-01 | P128: 2015-07-01 | Q128: 1
A129: 143585 | B129: Actualizacion archivos de las vistas | C129: RUIZ, PATRICIA | D129: 28/07/2015 17:15 | E129: RUIZ, PATRICIA | F129: Alta (24 horas) | G129: Finalizado | H129: Solicitud de Información | I129: Por defecto | J129: HQ -RD | K129: 10/08/2015 10:33 | L129: 10/08/2015 10:33 | N129: Otros | O129: 2015-08-01 | P129: 2015-07-01 | Q129: 0
A130: 143534 | B130: ERROR EN FOCUS WEB | C130: JANETH NAVARRETE | D130: 28/07/2015 14:38 | E130: JANETH NAVARRETE | F130: Urgente (4 horas) | G130: Finalizado | H130: Caida de Servicio | I130: Por defecto | J130: HQ -EQ | K130: 28/07/2015 16:33 | L130: 28/07/2015 16:33 | N130: =IF(F130="","",IF(OR(F130="Urgente (4 horas)",F130="Crítica (8 horas)"),"Crit/Urge","Otros")) -> Crit/Urge | O130: =IF(A130="","",IF(L130="","ABIERTO",DATE(VALUE(MID(L130,7,4)),VALUE(MID(L130,4,2)),1))) -> 2015-07-01 | P130: =IF(A130="","",DATE(VALUE(MID(D130,7,4)),VALUE(MID(D130,4,2)),1)) -> 2015-07-01 | Q130: =IF(A130="","",IF(AND(P130=O130, G130="Finalizado"),1,0)) -> 1
A131: 143522 | B131: RESPUESTAS RECAT INCOMPLETAS EN EL REPORTE | C131: VILLARREAL, ALBERTO | D131: 28/07/2015 13:37 | E131: VILLARREAL, ALBERTO | F131: Urgente (4 horas) | G131: Finalizado | H131: Solicitud de Información | I131: Por defecto | J131: HQ -MX | K131: 29/07/2015 16:39 | L131: 29/07/2015 16:39 | N131: Crit/Urge | O131: 2015-07-01 | P131: 2015-07-01 | Q131: 1
A132: 143521 | B132: solicitud aprobacion tareas de recategorizacion | C132: JUAN CAMILO AMAYA RODRIGUEZ | D132: 28/07/2015 13:28 | E132: JUAN CAMILO AMAYA RODRIGUEZ | F132: Alta (24 horas) | G132: Finalizado | H132: Error/Bug | I132: Desarrollo | J132: CO -HQ | K132: 10/08/2015 10:31 | L132: 10/08/2015 10:31 | N132: Otros | O132: 2015-08-01 | P132: 2015-07-01 | Q132: 0
A133: 143518 | B133: errores en la informacion al exportar informacion de Recat | C133: JUAN CAMILO AMAYA RODRIGUEZ | D133: 28/07/2015 13:17 | E133: JUAN CAMILO AMAYA RODRIGUEZ | F133: Alta (24 horas) | G133: Finalizado | H133: Error/Bug | I133: Desarrollo | J133: CO -HQ | K133: 10/08/2015 10:30 | L133: 10/08/2015 10:30 | N133: Otros | O133: 2015-08-01 | P133: 2015-07-01 | Q133: 0
A134: 143489 | B134: error.empty.productContactSegments recategorizando | C134: FROMER, FEDERICO | D134: 28/07/2015 11:01 | E134: CALVO, JUAN MANUEL | F134: Alta (24 horas) | G134: Nuevo | H134: Error/Bug | I134: Test | J134: ZA | K134: 28/07/2015 11:01 | N134: Otros | O134: ABIERTO | P134: 2015-07-01 | Q134: 0
A135: 143484 | B135: Solicitud de Respuestas de los APMs en Recategorización | C135: FLORES, JUAN PABLO | D135: 28/07/2015 10:47 | E135: FLORES, JUAN PABLO | F135: Alta (24 horas) | G135: Finalizado | H135: Solicitud de Información | I135: Por defecto | J135: HQ -BV | K135: 10/08/2015 11:01 | L135: 10/08/2015 11:01 | N135: Otros | O135: 2015-08-01 | P135: 2015-07-01 | Q135: 0
A136: 143481 | B136: Diferencas de visitas Aciones x Promedio | C136: MAGALHAES, FERNANDO | D136: 28/07/2015 10:19 | E136: MAGALHAES, FERNANDO | F136: Alta (24 horas) | G136: Finalizado | H136: Error/Bug | I136: Desarrollo | J136: HQ -BR | K136: 10/08/2015 10:23 | L136: 10/08/2015 10:23 | N136: Otros | O136: 2015-08-01 | P136: 2015-07-01 | Q136: 0
A137: 143423 | B137: Nuevo requerimiento | C137: RUIZ, PATRICIA | D137: 27/07/2015 17:53 | E137: RUIZ, PATRICIA | F137: Urgente (4 horas) | G137: Finalizado | H137: Nuevo requerimiento | I137: Reportes | J137: HQ -RD | K137: 30/07/2015 16:05 | L137: 30/07/2015 16:05 | N137: Crit/Urge | O137: 2015-07-01 | P137: 2015-07-01 | Q137: 1
A138: 143418 | B138: solicitud vista vagenda actualizada | C138: JUAN CAMILO AMAYA RODRIGUEZ | D138: 27/07/2015 17:49 | E138: JUAN CAMILO AMAYA RODRIGUEZ | F138: Urgente (4 horas) | G138: Cancelado | H138: Solicitud de Información | I138: Por defecto | J138: CO -HQ | K138: 28/07/2015 09:46 | L138: 28/07/2015 09:46 | N138: Crit/Urge | O138: 2015-07-01 | P138: 2015-07-01 | Q138: 0
A139: 143344 | B139: BORRAR RESPUESTAS RECAT 2015 DE LOS ID DE CONTACTO ADJUNTOS | C139: VILLARREAL, ALBERTO | D139: 27/07/2015 13:23 | E139: VILLARREAL, ALBERTO | F139: Alta (24 horas) | G139: Finalizado | H139: Carga Manual de Datos | I139: Por defecto | J139: HQ -MX | K139: 29/07/2015 16:36 | L139: 29/07/2015 16:36 | N139: Otros | O139: 2015-07-01 | P139: 2015-07-01 | Q139: 1
A140: 143343 | B140: BORRAR RESPUESTAS RECAT 2015 DE LOS ID DE CONTACTO ADJUNTOS | C140: VILLARREAL, ALBERTO | D140: 27/07/2015 13:23 | E140: LEIS, DAMIAN | F140: Alta (24 horas) | G140: Cancelado | H140: Carga Manual de Datos | I140: Por defecto | J140: HQ -MX | K140: 27/07/2015 14:11 | L140: 27/07/2015 14:11 | N140: Otros | O140: 2015-07-01 | P140: 2015-07-01 | Q140: 0
A141: 143335 | B141: USUARIOS Y PASSWORDS | C141: VILLARREAL, ALBERTO | D141: 27/07/2015 13:02 | E141: VILLARREAL, ALBERTO | F141: Alta (24 horas) | G141: Finalizado | H141: Solicitud de Información | I141: Por defecto | J141: HQ -MX | K141: 28/07/2015 13:18 | L141: 28/07/2015 13:18 | N141: Otros | O141: 2015-07-01 | P141: 2015-07-01 | Q141: 1
A142: 143262 | B142: Cadastro de nuevas literaturas | C142: MAGALHAES, FERNANDO | D142: 27/07/2015 09:27 | E142: MAGALHAES, FERNANDO | F142: Alta (24 horas) | G142: Finalizado | H142: Carga Manual de Datos | I142: Por defecto | J142: HQ -BR | K142: 10/08/2015 10:21 | L142: 10/08/2015 10:21 | N142: Otros | O142: 2015-08-01 | P142: 2015-07-01 | Q142: 0
A143: 143199 | B143: ERROR 500 REPORTE DE AVANCE DE RECAT | C143: VILLARREAL, ALBERTO | D143: 24/07/2015 13:49 | E143: PALACIOS, CRISTHIAN | F143: Alta (24 horas) | G143: En Desarrollo IT | H143: Error/Bug | I143: Produccion | J143: HQ -MX | K143: 31/07/2015 11:34 | N143: Otros | O143: ABIERTO | P143: 2015-07-01 | Q143: 0
A144: 143198 | B144: Focus Fora do Ar | C144: SILVA, RENATA | D144: 24/07/2015 13:48 | E144: SILVA, RENATA | F144: Alta (24 horas) | G144: Finalizado | H144: Error/Bug | I144: Produccion | J144: HQ -BR | K144: 10/08/2015 11:28 | L144: 24/07/2015 13:55 | N144: Otros | O144: 2015-07-01 | P144: 2015-07-01 | Q144: 1
A145: 142984 | B145: Cadastro y Cambio de Materiais Promocionais | C145: MAGALHAES, FERNANDO | D145: 23/07/2015 10:21 | E145: MAGALHAES, FERNANDO | F145: Alta (24 horas) | G145: Finalizado | H145: Carga Manual de Datos | I145: Por defecto | J145: HQ -BR | K145: 23/07/2015 10:52 | L145: 23/07/2015 10:52 | N145: Otros | O145: 2015-07-01 | P145: 2015-07-01 | Q145: 1
A146: 142912 | B146: Error lista desplegable FOCUS WEB | C146: RIVAS, JAIME | D146: 22/07/2015 16:24 | E146: RIVAS, JAIME | F146: Media (72 horas) | G146: Finalizado | H146: Error/Bug | I146: Produccion | J146: HQ -VE | K146: 01/09/2015 17:43 | L146: 01/09/2015 17:43 | N146: Otros | O146: 2015-09-01 | P146: 2015-07-01 | Q146: 0
A147: 142902 | B147: Error Nueva versión mobile 2015.0.3 | C147: RIVAS, JAIME | D147: 22/07/2015 15:48 | E147: PALACIOS, CRISTHIAN | F147: Media (72 horas) | G147: En Desarrollo IT | H147: Error/Bug | I147: Test | J147: HQ -VE | K147: 22/07/2015 18:43 | N147: Otros | O147: ABIERTO | P147: 2015-07-01 | Q147: 0
A148: 142861 | B148: Relatorio de Preenchimento de sistema de Recat | C148: MAGALHAES, FERNANDO | D148: 22/07/2015 12:54 | E148: MAGALHAES, FERNANDO | F148: Alta (24 horas) | G148: Finalizado | H148: Consulta | I148: Por defecto | J148: HQ -BR | K148: 23/07/2015 11:04 | L148: 23/07/2015 11:04 | N148: Otros | O148: 2015-07-01 | P148: 2015-07-01 | Q148: 1
A149: 142836 | B149: Vista de posicion de produto en la grade | C149: MAGALHAES, FERNANDO | D149: 22/07/2015 12:13 | E149: MAGALHAES, FERNANDO | F149: Alta (24 horas) | G149: Finalizado | H149: Nuevo requerimiento | I149: Contactos | J149: HQ -BR | K149: 23/07/2015 11:03 | L149: 23/07/2015 11:03 | N149: Otros | O149: 2015-07-01 | P149: 2015-07-01 | Q149: 1
A150: 142667 | B150: La adición de marcas al plan promocional no está pasando por la aprobación del Supervisor | C150: GUTIERREZ, EDUARDO | D150: 21/07/2015 13:11 | E150: GUTIERREZ, EDUARDO | F150: Media (72 horas) | G150: Finalizado | H150: Error/Bug | I150: Produccion | J150: HQ -PY | K150: 23/07/2015 11:02 | L150: 23/07/2015 11:02 | N150: Otros | O150: 2015-07-01 | P150: 2015-07-01 | Q150: 1
A151: 142661 | B151: Consolidado de la vista de visitas | C151: RUIZ, PATRICIA | D151: 21/07/2015 12:58 | E151: RUIZ, PATRICIA | F151: Alta (24 horas) | G151: Finalizado | H151: Solicitud de Información | I151: Por defecto | J151: HQ -RD | K151: 22/07/2015 12:14 | L151: 22/07/2015 12:14 | N151: Otros | O151: 2015-07-01 | P151: 2015-07-01 | Q151: 1
A152: 142569 | B152: Cambio de lo nombre de producto en sistema de Recat | C152: MAGALHAES, FERNANDO | D152: 21/07/2015 10:16 | E152: MAGALHAES, FERNANDO | F152: Alta (24 horas) | G152: Finalizado | H152: Carga Manual de Datos | I152: Por defecto | J152: HQ -BR | K152: 22/07/2015 12:08 | L152: 22/07/2015 12:08 | N152: Otros | O152: 2015-07-01 | P152: 2015-07-01 | Q152: 1
A153: 142529 | B153: Vista Vpadrones | C153: SOTELO, ISRAEL | D153: 20/07/2015 19:12 | E153: SOTELO, ISRAEL | F153: Alta (24 horas) | G153: Finalizado | H153: Solicitud de Información | I153: Por defecto | J153: HQ -PE | K153: 22/07/2015 11:43 | L153: 22/07/2015 11:43 | N153: Otros | O153: 2015-07-01 | P153: 2015-07-01 | Q153: 1
A154: 142528 | B154: Solicitud de archivo bi_promyrecorealxzona 2015 BV, bi_medicosxmarcaxsegmentoxzona 2015 BV | C154: FLORES, JUAN PABLO | D154: 20/07/2015 19:11 | E154: FLORES, JUAN PABLO | F154: Alta (24 horas) | G154: Finalizado | H154: Solicitud de Información | I154: Por defecto | J154: HQ -BV | K154: 22/07/2015 11:41 | L154: 22/07/2015 11:41 | N154: Otros | O154: 2015-07-01 | P154: 2015-07-01 | Q154: 1
A155: 142498 | B155: Cambio en los dias de visitas entre lo cargado y lo que sale luego en el sistema | C155: SHAW, GUZMAN | D155: 20/07/2015 16:37 | E155: SHAW, GUZMAN | F155: Alta (24 horas) | G155: Finalizado | H155: Error/Bug | I155: Produccion | J155: HQ -NU | K155: 24/07/2015 10:56 | L155: 24/07/2015 10:56 | N155: Otros | O155: 2015-07-01 | P155: 2015-07-01 | Q155: 1
A156: 142350 | B156: Erro Focus | C156: SILVA, RENATA | D156: 20/07/2015 08:36 | E156: SILVA, RENATA | F156: Alta (24 horas) | G156: Finalizado | H156: Error/Bug | I156: Desarrollo | J156: HQ -BR | K156: 22/07/2015 11:40 | L156: 22/07/2015 11:40 | N156: Otros | O156: 2015-07-01 | P156: 2015-07-01 | Q156: 1
A157: 142346 | B157: error al verificar avance de recategorizacion por apm | C157: JUAN CAMILO AMAYA RODRIGUEZ | D157: 17/07/2015 19:55 | E157: PALACIOS, CRISTHIAN | F157: Alta (24 horas) | G157: En Desarrollo IT | H157: Error/Bug | I157: Produccion | J157: CO -HQ | K157: 22/07/2015 12:04 | N157: Otros | O157: ABIERTO | P157: 2015-07-01 | Q157: 0
A158: 142345 | B158: error al exportar archivos de recat en xls | C158: JUAN CAMILO AMAYA RODRIGUEZ | D158: 17/07/2015 19:53 | E158: PALACIOS, CRISTHIAN | F158: Alta (24 horas) | G158: En Desarrollo IT | H158: Error/Bug | I158: Produccion | J158: CO -HQ | K158: 20/07/2015 10:06 | N158: Otros | O158: ABIERTO | P158: 2015-07-01 | Q158: 0
A159: 142237 | B159: Actualizacion de Productos - Focus Med | C159: JUAN CAMILO AMAYA RODRIGUEZ | D159: 16/07/2015 19:49 | E159: JUAN CAMILO AMAYA RODRIGUEZ | F159: Alta (24 horas) | G159: Finalizado | H159: Carga Manual de Datos | I159: Por defecto | J159: CO -HQ | K159: 17/07/2015 11:05 | L159: 17/07/2015 11:05 | N159: Otros | O159: 2015-07-01 | P159: 2015-07-01 | Q159: 1
A160: 142178 | B160: Pendente de Aprovação | C160: SILVA, RENATA | D160: 16/07/2015 14:23 | E160: SILVA, RENATA | F160: Alta (24 horas) | G160: Finalizado | H160: Error/Bug | I160: Desarrollo | J160: HQ -BR | K160: 17/07/2015 10:01 | L160: 17/07/2015 10:01 | N160: Otros | O160: 2015-07-01 | P160: 2015-07-01 | Q160: 1
A161: 142088 | B161: Vista vsegmentacionpadron ciclo 08 | C161: SILVA, RENATA | D161: 16/07/2015 09:47 | E161: SILVA, RENATA | F161: Alta (24 horas) | G161: Finalizado | H161: Solicitud de Información | I161: Por defecto | J161: HQ -BR | K161: 21/07/2015 09:26 | L161: 21/07/2015 09:26 | N161: Otros | O161: 2015-07-01 | P161: 2015-07-01 | Q161: 1
A162: 142071 | B162: Pendente de Aprovação | C162: SILVA, RENATA | D162: 16/07/2015 08:34 | E162: SILVA, RENATA | F162: Alta (24 horas) | G162: Finalizado | H162: Error/Bug | I162: Desarrollo | J162: HQ -BR | K162: 17/07/2015 09:54 | L162: 17/07/2015 09:54 | N162: Otros | O162: 2015-07-01 | P162: 2015-07-01 | Q162: 1
A163: 142063 | B163: SE BORRARON LOS SEGMENTOS EN LA TABLET COMO NO PUEDO ESCRIBIR EN LA DESCRIPCION DEL TICKET TE PONGO LOS DETALLES EN UN CORREO. | C163: VILLARREAL, ALBERTO | D163: 15/07/2015 19:44 | E163: VILLARREAL, ALBERTO | F163: Alta (24 horas) | G163: Finalizado | H163: Error/Bug | I163: Produccion | J163: HQ -MX | K163: 17/07/2015 09:53 | L163: 17/07/2015 09:53 | N163: Otros | O163: 2015-07-01 | P163: 2015-07-01 | Q163: 1
A164: 141965 | B164: ERROR AL RECATEGORIZAR ASOFLON+TEALEP | C164: PALACIOS, CRISTHIAN | D164: 15/07/2015 12:58 | E164: VILLARREAL, ALBERTO | F164: Alta (24 horas) | G164: Finalizado | H164: Error/Bug | I164: Produccion | J164: HQ -MX | K164: 15/07/2015 16:08 | L164: 15/07/2015 16:08 | N164: Otros | O164: 2015-07-01 | P164: 2015-07-01 | Q164: 1
A165: 141859 | B165: Error Recategorizacion | C165: SOTELO, ISRAEL | D165: 14/07/2015 16:56 | E165: SOTELO, ISRAEL | F165: Alta (24 horas) | G165: Finalizado | H165: Error/Bug | I165: Desarrollo | J165: HQ -PE | K165: 15/07/2015 13:53 | L165: 15/07/2015 13:53 | N165: Otros | O165: 2015-07-01 | P165: 2015-07-01 | Q165: 1
A166: 141779 | B166: solicitud archivo | C166: RUIZ, PATRICIA | D166: 14/07/2015 13:35 | E166: RUIZ, PATRICIA | F166: Alta (24 horas) | G166: Finalizado | H166: Solicitud de Información | I166: Por defecto | J166: HQ -RD | K166: 15/07/2015 13:54 | L166: 15/07/2015 13:54 | N166: Otros | O166: 2015-07-01 | P166: 2015-07-01 | Q166: 1
A167: 141770 | B167: Error al sincronizar | C167: JUAN CAMILO AMAYA RODRIGUEZ | D167: 14/07/2015 12:49 | E167: JUAN CAMILO AMAYA RODRIGUEZ | F167: Alta (24 horas) | G167: Finalizado | H167: Error/Bug | I167: Produccion | J167: CO -HQ | K167: 15/07/2015 16:06 | L167: 15/07/2015 16:06 | N167: Otros | O167: 2015-07-01 | P167: 2015-07-01 | Q167: 1
A168: 141696 | B168: Archivos Vacios Vistas Focus desde 11 al 13 de Julio. | C168: BRIONES, FELIPE | D168: 14/07/2015 10:02 | E168: BRIONES, FELIPE | F168: Alta (24 horas) | G168: Finalizado | H168: Error/Bug | I168: Produccion | J168: HQ -CH | K168: 14/07/2015 18:53 | L168: 14/07/2015 18:53 | N168: Otros | O168: 2015-07-01 | P168: 2015-07-01 | Q168: 1
A169: 141676 | B169: Limpeza de Arquivos Audit | C169: SILVA, RENATA | D169: 14/07/2015 08:31 | E169: SILVA, RENATA | F169: Alta (24 horas) | G169: Finalizado | H169: Carga Manual de Datos | I169: Por defecto | J169: HQ -BR | K169: 14/07/2015 11:01 | L169: 14/07/2015 11:01 | N169: Otros | O169: 2015-07-01 | P169: 2015-07-01 | Q169: 1
A170: 141675 | B170: Erro de Sincronização | C170: SILVA, RENATA | D170: 14/07/2015 08:26 | E170: SILVA, RENATA | F170: Alta (24 horas) | G170: Finalizado | H170: Error/Bug | I170: Desarrollo | J170: HQ -BR | K170: 15/07/2015 15:59 | L170: 15/07/2015 15:59 | N170: Otros | O170: 2015-07-01 | P170: 2015-07-01 | Q170: 1
A171: 141636 | B171: Vistas | C171: SOTELO, ISRAEL | D171: 13/07/2015 17:38 | E171: SOTELO, ISRAEL | F171: Alta (24 horas) | G171: Finalizado | H171: Solicitud de Información | I171: Por defecto | J171: HQ -PE | K171: 13/07/2015 18:18 | L171: 13/07/2015 18:18 | N171: Otros | O171: 2015-07-01 | P171: 2015-07-01 | Q171: 1
A172: 141585 | B172: No esta Cargando las vistas en la carpeta de Guatemala | C172: PANIAGUA, PEDRO | D172: 13/07/2015 15:26 | E172: PANIAGUA, PEDRO | F172: Alta (24 horas) | G172: Finalizado | H172: Consulta | I172: Por defecto | J172: HQ -CA | K172: 14/07/2015 14:46 | L172: 14/07/2015 14:46 | N172: Otros | O172: 2015-07-01 | P172: 2015-07-01 | Q172: 1
A173: 141527 | B173: NO REGISTRA PLAN DE DISTRIBUCION | C173: JUAN CAMILO AMAYA RODRIGUEZ | D173: 13/07/2015 12:18 | E173: JUAN CAMILO AMAYA RODRIGUEZ | F173: Alta (24 horas) | G173: Finalizado | H173: Error/Bug | I173: Desarrollo | J173: CO -HQ | K173: 14/07/2015 14:45 | L173: 14/07/2015 14:45 | N173: Otros | O173: 2015-07-01 | P173: 2015-07-01 | Q173: 1
A174: 141524 | B174: Error en la aprobacion de tareas en Guatemala | C174: PANIAGUA, PEDRO | D174: 13/07/2015 12:15 | E174: PANIAGUA, PEDRO | F174: Alta (24 horas) | G174: Finalizado | H174: Error/Bug | I174: Produccion | J174: HQ -CA | K174: 15/07/2015 19:21 | L174: 15/07/2015 19:21 | N174: Otros | O174: 2015-07-01 | P174: 2015-07-01 | Q174: 1
A175: 141518 | B175: error al sincronizar la recategorizacion | C175: JUAN CAMILO AMAYA RODRIGUEZ | D175: 13/07/2015 12:10 | E175: JUAN CAMILO AMAYA RODRIGUEZ | F175: Alta (24 horas) | G175: Finalizado | H175: Solicitud de Información | I175: Por defecto | J175: CO -HQ | K175: 13/07/2015 12:26 | L175: 13/07/2015 12:26 | N175: Otros | O175: 2015-07-01 | P175: 2015-07-01 | Q175: 1
A176: 141517 | B176: error al sincronizar la recategorizacion | C176: JUAN CAMILO AMAYA RODRIGUEZ | D176: 13/07/2015 12:10 | E176: JUAN CAMILO AMAYA RODRIGUEZ | F176: Alta (24 horas) | G176: Finalizado | H176: Solicitud de Información | I176: Por defecto | J176: CO -HQ | K176: 14/07/2015 14:42 | L176: 14/07/2015 14:42 | N176: Otros | O176: 2015-07-01 | P176: 2015-07-01 | Q176: 1
A177: 141513 | B177: error al aprobar tareas de farmacias | C177: JUAN CAMILO AMAYA RODRIGUEZ | D177: 13/07/2015 11:53 | E177: JUAN CAMILO AMAYA RODRIGUEZ | F177: Alta (24 horas) | G177: Finalizado | H177: Error/Bug | I177: Desarrollo | J177: CO -HQ | K177: 16/07/2015 11:50 | L177: 16/07/2015 11:50 | N177: Otros | O177: 2015-07-01 | P177: 2015-07-01 | Q177: 1
A178: 141507 | B178: solicitud de vistas actualizadas | C178: JUAN CAMILO AMAYA RODRIGUEZ | D178: 13/07/2015 11:46 | E178: JUAN CAMILO AMAYA RODRIGUEZ | F178: Alta (24 horas) | G178: Finalizado | H178: Solicitud de Información | I178: Por defecto | J178: CO -HQ | K178: 13/07/2015 12:14 | L178: 13/07/2015 12:14 | N178: Otros | O178: 2015-07-01 | P178: 2015-07-01 | Q178: 1
A179: 141463 | B179: Archivos vistas | C179: JANETH NAVARRETE | D179: 13/07/2015 10:17 | E179: JANETH NAVARRETE | F179: Alta (24 horas) | G179: Finalizado | H179: Solicitud de Información | I179: Por defecto | J179: HQ -EQ | K179: 14/07/2015 14:40 | L179: 14/07/2015 14:40 | N179: Otros | O179: 2015-07-01 | P179: 2015-07-01 | Q179: 1
A180: 141393 | B180: Ingresar Producto Para su Reparto | C180: SOTELO, ISRAEL | D180: 10/07/2015 17:13 | E180: SOTELO, ISRAEL | F180: Alta (24 horas) | G180: Finalizado | H180: Carga Manual de Datos | I180: Por defecto | J180: HQ -PE | K180: 13/07/2015 10:01 | L180: 13/07/2015 10:01 | N180: Otros | O180: 2015-07-01 | P180: 2015-07-01 | Q180: 1
A181: 141375 | B181: vista bi_promoyrecorreal de JUNIO MX | C181: KOHR, KAREN | D181: 10/07/2015 15:32 | E181: KOHR, KAREN | F181: Alta (24 horas) | G181: Finalizado | H181: Solicitud de Información | I181: Por defecto | J181: HQ -ZA | K181: 13/07/2015 09:51 | L181: 13/07/2015 09:51 | N181: Otros | O181: 2015-07-01 | P181: 2015-07-01 | Q181: 1
A182: 141354 | B182: creación de codigos nuevos en Focus | C182: JANETH NAVARRETE | D182: 10/07/2015 12:58 | E182: JANETH NAVARRETE | F182: Alta (24 horas) | G182: Finalizado | H182: Carga Manual de Datos | I182: Por defecto | J182: HQ -EQ | K182: 10/07/2015 15:01 | L182: 10/07/2015 15:01 | N182: Otros | O182: 2015-07-01 | P182: 2015-07-01 | Q182: 1
A183: 141299 | B183: Error Inesperado Focus Mobile Versión Prueba. | C183: BRIONES, FELIPE | D183: 10/07/2015 09:37 | E183: BRIONES, FELIPE | F183: Alta (24 horas) | G183: Finalizado | H183: Error/Bug | I183: Desarrollo | J183: HQ -CH | K183: 17/07/2015 10:11 | L183: 17/07/2015 10:11 | N183: Otros | O183: 2015-07-01 | P183: 2015-07-01 | Q183: 1
A184: 141268 | B184: Archivos vistas | C184: JANETH NAVARRETE | D184: 09/07/2015 18:12 | E184: JANETH NAVARRETE | F184: Alta (24 horas) | G184: Finalizado | H184: Solicitud de Información | I184: Por defecto | J184: HQ -EQ | K184: 09/07/2015 19:02 | L184: 09/07/2015 19:02 | N184: Otros | O184: 2015-07-01 | P184: 2015-07-01 | Q184: 1
A185: 141216 | B185: Error con filtro Clientes | C185: CIRIANA NIETO | D185: 09/07/2015 13:08 | E185: CIRIANA NIETO | F185: Media (72 horas) | G185: Finalizado | H185: Error/Bug | I185: Produccion | J185: HQ -VE | K185: 17/07/2015 10:09 | L185: 17/07/2015 10:09 | N185: Otros | O185: 2015-07-01 | P185: 2015-07-01 | Q185: 1
A186: 141171 | B186: error al sincronizar accion no promocional | C186: JUAN CAMILO AMAYA RODRIGUEZ | D186: 09/07/2015 11:49 | E186: PALACIOS, CRISTHIAN | F186: Alta (24 horas) | G186: En Desarrollo IT | H186: Error/Bug | I186: Produccion | J186: CO -HQ | K186: 09/07/2015 18:16 | N186: Otros | O186: ABIERTO | P186: 2015-07-01 | Q186: 0
A187: 141170 | B187: Error al sincronizar visitas | C187: CIRIANA NIETO | D187: 09/07/2015 11:49 | E187: CIRIANA NIETO | F187: Media (72 horas) | G187: Finalizado | H187: Error/Bug | I187: Produccion | J187: HQ -VE | K187: 10/07/2015 11:42 | L187: 10/07/2015 11:42 | N187: Otros | O187: 2015-07-01 | P187: 2015-07-01 | Q187: 1
A188: 141089 | B188: Ajuste parrilla promocional junio | C188: CIRIANA NIETO | D188: 08/07/2015 18:45 | E188: CIRIANA NIETO | F188: Media (72 horas) | G188: Finalizado | H188: Solicitud de Información | I188: Por defecto | J188: HQ -VE | K188: 09/07/2015 15:11 | L188: 09/07/2015 15:11 | N188: Otros | O188: 2015-07-01 | P188: 2015-07-01 | Q188: 1
A189: 141077 | B189: Información Vsegpadron 2015 | C189: BRIONES, FELIPE | D189: 08/07/2015 17:58 | E189: BRIONES, FELIPE | F189: Alta (24 horas) | G189: Finalizado | H189: Solicitud de Información | I189: Por defecto | J189: HQ -CH | K189: 09/07/2015 10:24 | L189: 09/07/2015 10:24 | N189: Otros | O189: 2015-07-01 | P189: 2015-07-01 | Q189: 1
A190: 141044 | B190: Remover Segmento | C190: SILVA, RENATA | D190: 08/07/2015 16:40 | E190: SILVA, RENATA | F190: Alta (24 horas) | G190: Finalizado | H190: Carga Manual de Datos | I190: Por defecto | J190: HQ -BR | K190: 08/07/2015 17:31 | L190: 08/07/2015 17:31 | N190: Otros | O190: 2015-07-01 | P190: 2015-07-01 | Q190: 1
A191: 140998 | B191: Visitas | C191: SILVA, RENATA | D191: 08/07/2015 13:46 | E191: SILVA, RENATA | F191: Alta (24 horas) | G191: Finalizado | H191: Error/Bug | I191: Desarrollo | J191: HQ -BR | K191: 10/07/2015 11:40 | L191: 10/07/2015 11:40 | N191: Otros | O191: 2015-07-01 | P191: 2015-07-01 | Q191: 1
A192: 140990 | B192: Error transferencia de contactos | C192: RUIZ, PATRICIA | D192: 08/07/2015 13:00 | E192: RUIZ, PATRICIA | F192: Alta (24 horas) | G192: Finalizado | H192: Error/Bug | I192: Produccion | J192: HQ -RD | K192: 08/07/2015 17:26 | L192: 08/07/2015 17:02 | N192: Otros | O192: 2015-07-01 | P192: 2015-07-01 | Q192: 1
A193: 140944 | B193: creación de codigos nuevos en Focus | C193: JANETH NAVARRETE | D193: 08/07/2015 10:32 | E193: JANETH NAVARRETE | F193: Alta (24 horas) | G193: Finalizado | H193: Carga Manual de Datos | I193: Por defecto | J193: HQ -EQ | K193: 08/07/2015 18:29 | L193: 08/07/2015 18:29 | N193: Otros | O193: 2015-07-01 | P193: 2015-07-01 | Q193: 1
A194: 140905 | B194: Cargar Fapris en los paises de centroamerica | C194: PANIAGUA, PEDRO | D194: 07/07/2015 18:10 | E194: PANIAGUA, PEDRO | F194: Alta (24 horas) | G194: Finalizado | H194: Carga Manual de Datos | I194: Por defecto | J194: HQ -CA | K194: 09/07/2015 10:23 | L194: 09/07/2015 10:23 | N194: =IF(F194="","",IF(OR(F194="Urgente (4 horas)",F194="Crítica (8 horas)"),"Crit/Urge","Otros")) -> Otros | O194: =IF(A194="","",IF(L194="","ABIERTO",DATE(VALUE(MID(L194,7,4)),VALUE(MID(L194,4,2)),1))) -> 2015-07-01 | P194: =IF(A194="","",DATE(VALUE(MID(D194,7,4)),VALUE(MID(D194,4,2)),1)) -> 2015-07-01 | Q194: =IF(A194="","",IF(AND(P194=O194, G194="Finalizado"),1,0)) -> 1
A195: 140841 | B195: Recat Mitrul | C195: SILVA, RENATA | D195: 07/07/2015 15:14 | E195: SILVA, RENATA | F195: Alta (24 horas) | G195: Finalizado | H195: Consulta | I195: Por defecto | J195: HQ -BR | K195: 08/07/2015 11:57 | L195: 08/07/2015 11:57 | N195: Otros | O195: 2015-07-01 | P195: 2015-07-01 | Q195: 1
A196: 140801 | B196: Error cuando se queire editar a un contacto Guatemala | C196: PANIAGUA, PEDRO | D196: 07/07/2015 13:16 | E196: PANIAGUA, PEDRO | F196: Alta (24 horas) | G196: Finalizado | H196: Consulta | I196: Por defecto | J196: HQ -CA | K196: 10/07/2015 11:38 | L196: 10/07/2015 11:38 | N196: Otros | O196: 2015-07-01 | P196: 2015-07-01 | Q196: 1
A197: 140779 | B197: Recat | C197: SILVA, RENATA | D197: 07/07/2015 11:30 | E197: SILVA, RENATA | F197: Alta (24 horas) | G197: Finalizado | H197: Consulta | I197: Por defecto | J197: HQ -BR | K197: 08/07/2015 11:57 | L197: 08/07/2015 11:57 | N197: Otros | O197: 2015-07-01 | P197: 2015-07-01 | Q197: 1
A198: 140773 | B198: Visualizacao do Plano de Distribuicao | C198: MAGALHAES, FERNANDO | D198: 07/07/2015 11:02 | E198: MAGALHAES, FERNANDO | F198: Alta (24 horas) | G198: Finalizado | H198: Error/Bug | I198: Desarrollo | J198: HQ -BR | K198: 09/07/2015 10:16 | L198: 09/07/2015 10:16 | N198: Otros | O198: 2015-07-01 | P198: 2015-07-01 | Q198: 1
A199: 140719 | B199: DATAS | C199: VILLARREAL, ALBERTO | D199: 07/07/2015 08:48 | E199: VILLARREAL, ALBERTO | F199: Alta (24 horas) | G199: Finalizado | H199: Solicitud de Información | I199: Por defecto | J199: HQ -MX | K199: 09/07/2015 10:15 | L199: 09/07/2015 10:15 | N199: Otros | O199: 2015-07-01 | P199: 2015-07-01 | Q199: 1
A200: 140713 | B200: Vistas historicas CA | C200: RUIZ, PATRICIA | D200: 06/07/2015 19:35 | E200: RUIZ, PATRICIA | F200: Alta (24 horas) | G200: Finalizado | H200: Solicitud de Información | I200: Por defecto | J200: HQ -RD | K200: 09/07/2015 10:13 | L200: 09/07/2015 10:13 | N200: Otros | O200: 2015-07-01 | P200: 2015-07-01 | Q200: 1
... 4462 more rows

Sheet TABLAS
A1: AÑO | B1: 2018-01-01
A2: MES | B2: 2000-10-01
A4: DETALLES DE TICKETS POR ESTADO
A5: Cantidad de Tickets | B5: Filial
A6: Estado | B6: EQ | C6: (en blanco) | D6: Total general
A7: Finalizado | B7: 1295 | D7: 1295
A8: Cancelado | B8: 56 | D8: 56
A9: En Análisis | B9: 9 | D9: 9
A10: En Desarrollo | B10: 11 | D10: 11
A11: (en blanco)
A12: Aprobado | B12: 1 | D12: 1
A13: Rechazado | B13: 2 | D13: 2
A14: Nuevo | B14: 7 | D14: 7
A15: Total general | B15: 1381 | D15: 1381
A19: CANTIDAD/PORCENTAJE de Tickets generados discriminados en LOCAL/HQ
A20: TOTAL TICKETS | B20: =+GETPIVOTDATA("ID Reporte",$A$5) -> 1381
A21: TICKETS IT LOCAL | B21: =GETPIVOTDATA("ID Reporte",$A$5,"Filial","EQ ") -> 1381 | C21: =+B21*100/B20 -> 100 | D21: %
A25: DETALLES DE TICKETS por ESTADO según Nivel de Prioridad
A26: Cantidad de Tickets | B26: Nivel Prioridad
A27: Estado | B27: Crit/Urge | C27: Otros | D27: (en blanco) | E27: Total general
A28: Finalizado | B28: 256 | C28: 1039 | E28: 1295
A29: Cancelado | B29: 4 | C29: 52 | E29: 56
A30: En Análisis | C30: 9 | E30: 9
A31: En Desarrollo | C31: 11 | E31: 11
A32: (en blanco)
A33: Aprobado | C33: 1 | E33: 1
A34: Rechazado | C34: 2 | E34: 2
A35: Nuevo | B35: 2 | C35: 5 | E35: 7
A36: Total general | B36: 262 | C36: 1119 | E36: 1381
A39: GLOSARIO
A40: PRIORIDAD "CRIT/URGE"
B41: Comprende los tickets de Prioridad CRITICA o URGENTE
A42: PRIORIDAD "OTROS"
B43: Comprende el resto de las Prioridades posibles para un ticket
A46: AÑOMES ING | B46: (Todas)
A48: Etiquetas de fila | B48: Cuenta de ID Reporte
A49: Cancelado | B49: 0.04055032585
A50: Finalizado | B50: 0.9377262853
A51: En Análisis | B51: 0.006517016655
A52: En Desarrollo | B52: 0.007965242578
A53: (en blanco) | B53: 0
A54: Aprobado | B54: 0.0007241129616
A55: Rechazado | B55: 0.001448225923
A56: Nuevo | B56: 0.005068790731
A57: Total general | B57: 1
D63: Etiquetas de fila | E63: Cuenta de ID Reporte | F63: Suma de RESUELTOS MES
A64: Etiquetas de fila | B64: Cuenta de ID Reporte | D64: 2016-11-01 | E64: 4 | F64: 4
A65: ABIERTO | B65: 27 | D65: 2017-02-01 | E65: 15 | F65: 15
A66: (en blanco) | D66: 2017-01-01 | E66: 12 | F66: 10
A67: 2016-11-01 | B67: 4 | D67: (en blanco) | I67: Año/Mes | J67: Total tickets | K67: Ticket cerrados Acumulado | L67: % Tickets cerrados | M67: Nuevos del mes | N67: Resuletos del mes | O67: % Resueltos del mes
A68: 2017-02-01 | B68: 14 | D68: 2017-04-01 | E68: 20 | F68: 20 | I68: =DATE(YEAR(B1),MONTH(B2),DAY(1)) -> 2018-10-01 | J68: =SUM(M68,J69) -> 251 | K68: =IFERROR(GETPIVOTDATA("Cuenta de ID Reporte",$A$63,"AÑOMES CIERRE",I68),0)+K69 -> 0 | L68: =IF(J68=0,0,K68/J68) -> 0 | M68: =IFERROR(GETPIVOTDATA("Cuenta de ID Reporte",$D$63,"AÑOMES ING",I68),0) -> 59 | N68: =IFERROR(GETPIVOTDATA("Suma de RESUELTOS MES",$D$63,"AÑOMES ING",I68),0) -> 56 | O68: =IFERROR(N68/M68,0) -> 0.9491525424
A69: 2017-01-01 | B69: 10 | D69: 2017-03-01 | E69: 33 | F69: 32 | I69: =DATE(YEAR(I68),MONTH(I68)-1,1) -> 2018-09-01 | J69: =SUM(M69,J70) -> 192 | K69: =IFERROR(GETPIVOTDATA("Cuenta de ID Reporte",$A$63,"AÑOMES CIERRE",I69),0)+K70 -> 0 | L69: =IF(J69=0,0,K69/J69) -> 0 | M69: =IFERROR(GETPIVOTDATA("Cuenta de ID Reporte",$D$63,"AÑOMES ING",I69),0) -> 58 | N69: =IFERROR(GETPIVOTDATA("Suma de RESUELTOS MES",$D$63,"AÑOMES ING",I69),0) -> 57 | O69: =IFERROR(N69/M69,0) -> 0.9827586207
A70: 2017-04-01 | B70: 20 | D70: 2016-12-01 | E70: 2 | F70: 2 | I70: =DATE(YEAR(I69),MONTH(I69)-1,1) -> 2018-08-01 | J70: 134 | K70: 0 | L70: 0 | M70: =IFERROR(GETPIVOTDATA("Cuenta de ID Reporte",$D$63,"AÑOMES ING",I70),0) -> 57 | N70: =IFERROR(GETPIVOTDATA("Suma de RESUELTOS MES",$D$63,"AÑOMES ING",I70),0) -> 56 | O70: =IFERROR(N70/M70,0) -> 0.9824561404
A71: 2017-03-01 | B71: 34 | D71: 2017-07-01 | E71: 26 | F71: 26 | I71: =DATE(YEAR(I70),MONTH(I70)-1,1) -> 2018-07-01 | J71: 77 | K71: 0 | L71: 0 | M71: 77 | N71: 76 | O71: 0.987012987
A72: 2016-12-01 | B72: 2 | D72: 2017-06-01 | E72: 22 | F72: 22
A73: 2017-07-01 | B73: 27 | D73: 2017-05-01 | E73: 7 | F73: 6
A74: 2017-06-01 | B74: 21 | D74: 2017-10-01 | E74: 84 | F74: 84
A75: 2017-05-01 | B75: 6 | D75: 2017-09-01 | E75: 53 | F75: 53
A76: 2017-10-01 | B76: 89 | D76: 2017-08-01 | E76: 64 | F76: 63
A77: 2017-09-01 | B77: 54 | D77: 2018-04-01 | E77: 87 | F77: 84
A78: 2017-08-01 | B78: 57 | D78: 2018-03-01 | E78: 98 | F78: 86
A79: 2018-04-01 | B79: 77 | D79: 2018-02-01 | E79: 104 | F79: 102
A80: 2018-03-01 | B80: 92 | D80: 2018-01-01 | E80: 104 | F80: 104
A81: 2018-02-01 | B81: 106 | D81: 2017-12-01 | E81: 58 | F81: 58
A82: 2018-01-01 | B82: 97 | D82: 2017-11-01 | E82: 105 | F82: 105
A83: 2017-12-01 | B83: 57 | D83: 2018-10-01 | E83: 59 | F83: 56
A84: 2017-11-01 | B84: 102 | D84: 2018-09-01 | E84: 58 | F84: 57
A85: Etiquetas de fila | B85: Cuenta de AÑOMES ING | D85: 2018-08-01 | E85: 57 | F85: 56
A86: Correo | B86: 633 | D86: 2018-07-01 | E86: 77 | F86: 76
A87: Por defecto | B87: 143 | D87: 2018-06-01 | E87: 84 | F87: 84
A88: Total general | B88: 776 | D88: 2018-05-01 | E88: 82 | F88: 82
D89: 2018-12-01 | E89: 18 | F89: 17
D90: 2018-11-01 | E90: 48 | F90: 47
D91: Total general | E91: 1381 | F91: 1351

Sheet GRAFICOS
B2: DETALLES DE TICKETS por ESTADO HQ
P12: *respaldo* | Q12: 9 | R12: 0.04864864865 | S12: RESPALDO
P13: *compar* | Q13: 22 | R13: 0.1189189189 | S13: RECURSOS COMPARTIDOS
P14: *red* | Q14: 14 | R14: 0.07567567568 | S14: ACCESO A SERVICIO COMPARTIDO
P15: *acceso* | Q15: 129 | R15: 0.6972972973 | S15: ACCESO A CARPETAS COMPARTIDAS
P16: *recuper* | Q16: 11 | R16: 0.05945945946 | S16: RECUPERAR INFORMACIÓN
B32: DETALLES DE TICKETS por ESTADO según Nivel de Prioridad

Sheet CONFIGURACION (hidden)
A1: PAIS | B1: FILIAL | D1: AÑO | F1: MES
A2: Uruguay | B2: NU | D2: 2013-01-01 | F2: 2000-01-01
A3: Brasil | B3: BR | D3: 2014-01-01 | F3: 2000-02-01
A4: Paraguay | B4: PY | D4: 2015-01-01 | F4: 2000-03-01
A5: Venezuela | B5: VE | D5: 2016-01-01 | F5: 2000-04-01
A6: Chile | B6: CH | D6: 2017-01-01 | F6: 2000-05-01
A7: Colombia | B7: CO | F7: 2000-06-01
A8: Bolivia | B8: BV | F8: 2000-07-01
A9: Centramérica | B9: CA | F9: 2000-08-01
A10: R. Dominicana | B10: RD | F10: 2000-09-01
A11: Mexico | B11: MX | F11: 2000-10-01
A12: Perú | B12: PE | F12: 2000-11-01
A13: Ecuador | B13: EQ | F13: 2000-12-01
A14: Totales | B14: TOTALES
A15: Todas | B15: TODAS

Sheet COMUNICACION (hidden)
A1: Filial | B1: Nombre | C1: Apellido | D1: Email | E1: tipo
A2: TODAS | B2: DAMIAN | C2: LEIS | D2: DLEIS@ADIUM.COM.UY | E2: c
A3: TODAS | B3: FERNANDO | C3: ESTEVEZ | D3: FESTEVEZ@ADIUM.COM.UY | E3: c | G3: Tipo: c = copia, p = para
A4: TODAS | B4: CRISTHIAN | C4: PALACIOS | D4: CPALACIOS@TECNOFARMA.COM.PE | E4: c | G4: Filial: TODAS = va en todos los correos, TOTALES = solo se envia en el informe de todos los tickets
A5: TODAS | B5: JUAN MANUEL | C5: CALVO | D5: JCALVO@ADIUM.COM.UY | E5: c
A6: TODAS | B6: NACIELA | C6: OLIVERA | D6: NOLIVERA@ADIUM.COM.UY | E6: c | G6: Nota: Si se deja un espacio en blanco en el campo filial, tanto esa linea como las siguientes no seran tenidas en cuenta.
A7: EQ | B7: ANGEL ALBERTO | C7: POLITTI | D7: APOLITTI@MEDICAMENT.COM.EC | E7: c
A8: EQ | B8: DIEGO MARCELO | C8: POLANCO | D8: DPOLANCO@MEDICAMENT.COM.EC | E8: c
A9: EQ | B9: LESLIE JANETH | C9: NAVARRETE | D9: JNAVARRETE@MEDICAMENT.COM.EC | E9: p
A10: EQ | B10: PABLO MAURICIO | C10: HERRERA | D10: PHERRERA@MEDICAMENT.COM.EC | E10: p
A11: EQ | B11: XIMENA DEL ROSARIO | C11: TERAN | D11: XTERAN@MEDICAMENT.COM.EC | E11: p
A12: TODAS | B12: MARTIN | C12: COSTIGLIOLO | D12: MCOSTIGLIOLO@ADIUM.COM.UY | E12: c
A13: TODAS | B13: CAROLINA | C13: GRANDE | D13: CGRANDE@ADIUM.COM.UY | E13: c
A14: TODAS | B14: KAREN | C14: KOHR | D14: KKOHR@ADIUM.COM.UY | E14: c

Sheet COMUNICACION (2) (hidden)
A1: Filial | B1: Nombre | C1: Apellido | D1: Email | E1: tipo
A2: TODAS | B2: DAMIAN | C2: LEIS | D2: DLEIS@ADIUM.COM.UY | E2: c
A3: TODAS | B3: FERNANDO | C3: ESTEVEZ | D3: FESTEVEZ@ADIUM.COM.UY | E3: c | G3: Tipo: c = copia, p = para
A4: TODAS | B4: CRISTHIAN | C4: PALACIOS | D4: CPALACIOS@TECNOFARMA.COM.PE | E4: c | G4: Filial: TODAS = va en todos los correos, TOTALES = solo se envia en el informe de todos los tickets
A5: TODAS | B5: JUAN MANUEL | C5: CALVO | D5: JCALVO@ADIUM.COM.UY | E5: c
A6: TODAS | B6: NACIELA | C6: OLIVERA | D6: NOLIVERA@ADIUM.COM.UY | E6: c | G6: Nota: Si se deja un espacio en blanco en el campo filial, tanto esa linea como las siguientes no seran tenidas en cuenta.
A7: CA | B7: JOSE MIGUEL | C7: IRAÑETA | D7: JIRANETA@ASOFARMA-CA.COM | E7: c
A8: CA | B8: WALTER ANTONIO | C8: VAZQUEZ | D8: WVAZQUEZ@ASOFARMA-CA.COM | E8: c
A9: CA | B9: NANCY CAROLINA | C9: DE LEON | D9: NDELEON@ASOFARMA-CA.COM | E9: p
A10: CA | B10: PEDRO ANTONIO | C10: PANIAGUA | D10: PPANIAGUA@ASOFARMA-CA.COM | E10: p
A11: MX | B11: ERWIN | C11: SAAVEDRA | D11: ESAAVEDRA@ASOFARMA.COM.MX | E11: c
A12: MX | B12: GUILLERMO | C12: WITTIG | D12: GWITTIG@ASOFARMA.COM.MX | E12: p
A13: MX | B13: MARCOS HERNAN | C13: PIJUAN | D13: MPIJUAN@ASOFARMA.COM.MX | E13: c
A14: RD | B14: MARIA MINERVA | C14: MARTINEZ | D14: MMARTINEZ@ASOFARMA.COM.DO | E14: p
A15: RD | B15: DEYDANIA MILITZA | C15: CESPEDES | D15: DCESPEDES@ASOFARMA.COM.DO | E15: c
A16: RD | B16: PATRICIA MANUELA | C16: RUIZ | D16: PRUIZ@ASOFARMA-CA.COM | E16: p
A17: PY | B17: OSVALDO DANIEL | C17: FORMENTO | D17: OSVALDO.FORMENTO@FAPASA.COM.PY | E17: c
A18: PY | B18: EDUARDO MIGUEL | C18: GUTIERREZ | D18: EDUARDO.GUTIERREZ@FAPASA.COM.PY | E18: p
A19: PY | B19: VANESSA LISSETH | C19: LUGONES | D19: VANESSA.LUGONES@FAPASA.COM.PY | E19: p
A20: EQ | B20: ANGEL ALBERTO | C20: POLITTI | D20: APOLITTI@MEDICAMENT.COM.EC | E20: c
A21: EQ | B21: DIEGO MARCELO | C21: POLANCO | D21: DPOLANCO@MEDICAMENT.COM.EC | E21: c
A22: EQ | B22: LESLIE JANETH | C22: NAVARRETE | D22: JNAVARRETE@MEDICAMENT.COM.EC | E22: p
A23: EQ | B23: PABLO MAURICIO | C23: HERRERA | D23: PHERRERA@MEDICAMENT.COM.EC | E23: p
A24: EQ | B24: XIMENA DEL ROSARIO | C24: TERAN | D24: XTERAN@MEDICAMENT.COM.EC | E24: p
A25: NU | B25: CARLOS OSCAR | C25: ESTRUCH | D25: CESTRUCH@NOLVER.COM.UY | E25: c
A26: NU | B26: JULIO CESAR | C26: MIGUEL | D26: JMIGUEL@NOLVER.COM.UY | E26: p
A27: VE | B27: ENRIQUE HORACIO | C27: FONTANA | D27: EFONTANA@NOLVER.COM | E27: c
A28: VE | B28: MICHELE | C28: DALESSANDRI | D28: MDALESSANDRI@NOLVER.COM | E28: c
A29: VE | B29: CIRIANA | C29: NIETO | D29: CNIETO@NOLVER.COM | E29: p
A30: VE | B30: EDGAR JOSE | C30: ROSAL | D30: EROSAL@NOLVER.COM | E30: p
A31: VE | B31: GERALDINE SOPHIA | C31: NUÑEZ | D31: GNUNEZ@NOLVER.COM | E31: p
A32: VE | B32: JAIME | C32: RIVAS | D32: JRIVAS@NOLVER.COM | E32: p
A33: BV | B33: ROBERTO | C33: HIDALGO | D33: ROBERTO.HIDALGO@TECNOFARMA.COM.BO | E33: c
A34: BV | B34: HERNAN | C34: GUTIERREZ | D34: HERNAN.GUTIERREZ@TECNOFARMA.COM.BO | E34: p
A35: BV | B35: JUAN PABLO | C35: FLORES | D35: JUANPABLO.FLORES@TECNOFARMA.COM.BO | E35: p
A36: BV | B36: LUIS HUMBERTO | C36: VILLALOBOS | D36: LUIS.VILLALOBOS@TECNOFARMA.COM.BO | E36: p
A37: CH | B37: ANTONIO | C37: AVILA | D37: AAVILA@TECNOFARMA.CL | E37: c
A38: CH | B38: DANIEL PATRICIO | C38: CANALES | D38: DCANALES@TECNOFARMA.CL | E38: p
A39: CH | B39: ANTONIO | C39: CHEUQUE | D39: ACHEUQUE@TECNOFARMA.CL | E39: p
A40: CH | B40: GUILLERMO PATRICIO | C40: ROJAS | D40: GROJAS@TECNOFARMA.CL | E40: p
A41: CO | B41: OSCAR MARIO | C41: ALVAREZ | D41: OALVAREZ@TECNOFARMA.COM.CO | E41: c
A42: CO | B42: BERNOULLI URIEL | C42: GALLEGO | D42: BGALLEGO@TECNOFARMA.COM.CO | E42: c
A43: CO | B43: JUAN CAMILO | C43: AMAYA | D43: JAMAYA@TECNOFARMA.COM.CO | E43: p
A44: CO | B44: FRANCISCO JAVIER | C44: BARONA | D44: FBARONA@TECNOFARMA.COM.CO | E44: c
A45: PE | B45: FRANCISCO JAVIER | C45: SIREDEY | D45: FSIREDEY@TECNOFARMA.COM.PE | E45: c
A46: PE | B46: EDGARDO ANTONIO | C46: DEL PIELAGO | D46: EDELPIELAGO@TECNOFARMA.COM.PE | E46: p
A47: PE | B47: JORGE LUIS | C47: CORRALES | D47: JCORRALES@TECNOFARMA.COM.PE | E47: p
A48: PE | B48: NELSON ISRAEL | C48: SOTELO | D48: ISOTELO@TECNOFARMA.COM.PE | E48: p
A49: BR | B49: MARIA HELOISA ALBUQUERQUE MACEDO | C49: SIMÃO | D49: HELOISA.SIMAO@ZODIAC.COM.BR | E49: c
A50: BR | B50: FERNANDO DE | C50: MAGALHAES | D50: FERNANDO.MAGALHAES@ZODIAC.COM.BR | E50: p
A51: BR | B51: RAMON MARTINS | C51: TAVARES | D51: RAMON.TAVARES@ZODIAC.COM.BR | E51: p
A52: BR | B52: ROSEMARY | C52: NAKO | D52: ROSEMARY.NAKO@ZODIAC.COM.BR | E52: c
A53: BR | B53: SHEILA RENATA PEREIRA DA | C53: SILVA | D53: SHEILLA.SILVA@ZODIAC.COM.BR | E53: p
A54: BR | B54: BRUNA CORDON ATOUGUIA | C54: OSORIO | D54: BRUNA.PRESTEM@ZODIAC.COM.BR | E54: p
A55: BR | B55: NILVA BORTOLETO | C55: BORTOLETO | D55: NILVA.BORTOLETO@ZODIAC.COM.BR | E55: c
A56: NU | B56: JOSE | C56: COZZA | D56: JCOZZA@NOLVER.COM.UY | E56: p
A57: TOTALES | B57: LUIS | C57: MARSICANO | D57: LMARSICANO@ADIUM.COM.UY | E57: p
A58: TOTALES | B58: CAROLINA | C58: GRANDE | D58: CGRANDE@ADIUM.COM.UY | E58: p
A59: TOTALES | B59: KAREN | C59: KOHR | D59: KKOHR@ADIUM.COM.UY | E59: p
A60: TODAS | B60: MARTIN | C60: COSTIGLIOLO | D60: MCOSTIGLIOLO@ADIUM.COM.UY | E60: c
A61: TOTALES | B61: MARCELO | C61: PILOTTO | D61: MPILOTTO@ADIUM.COM.UY | E61: c
A62: TOTALES | B62: JUAN | C62: GONZALEZ | D62: JGONZALEZ@ADIUM.COM.UY | E62: c
A63: TOTALES | B63: CARLOS | C63: CASTIGLIONI | D63: CCASTIGLIONI@ADIUM.COM.UY | E63: c
A64: TOTALES | B64: JORGE | C64: HERNANDEZ | D64: JHERNANDEZ@ADIUM.COM.UY | E64: c
A65: TOTALES | B65: DARWIN | C65: VALLEJO | D65: DVALLEJO@ADIUM.COM.UY | E65: c
A66: TODAS | B66: CAROLINA | C66: GRANDE | D66: CGRANDE@ADIUM.COM.UY | E66: c
A67: TODAS | B67: KAREN | C67: KOHR | D67: KKOHR@ADIUM.COM.UY | E67: c

Sheet Hoja1
A1: CO -HQ | C1: 2017-01-01
A2: HQ -EQ | C2: 2018-01-01
A3: HQ -UY
A4: HQ -BR
A5: HQ -ZA
A6: HQ -CA
A7: HQ -PE
A8: HQ -VE
A9: HQ -BV
A10: HQ -PY
A11: HQ -MX
A12: HQ -RD
A13: ZA
A14: HQ -NU
A15: HQ -PY -ZA
A16: HQ -CH
A17: BR
A18: HQ -ZA -PE
A19: EQ
A20: PY
A21: HQ
A22: HQ -ZA -RD
A23: HQ -EQ -ZA
A24: HQ -CH -ZA
A25: VE
A26: CO
